{"text_format":"1","workbook":"xlsx","n_sheets":9,"sheets":["Eingabeblatt","Bilanz","Anlagenspiegel","Forderungsspiegel","Verbindlichkeitenspiegel","Eigenkapitalspiegel","Tabelle1","Datensatz","Tabelle2"],"not_rendered":{"charts":0,"images":0,"macros":1,"external_links":0,"defined_names":17,"comments":0,"pivot_tables":0},"unopened":[],"bounds":{"document_bytes":16777216,"sheet_cells":100000,"rows_first":2000,"rows_last":500,"rows_between":2000,"halvings":0,"cell_chars":16384,"cell_head_chars":4096},"cells_cut":0,"cells_raw":0,"read":"whole","date_system":"1900"}

{"sheet":"Eingabeblatt","index":0,"n_rows":609,"n_cols":13,"rows_kept":609,"cut":false,"hidden":false,"merged":[[1,1,1,4],[2,1,2,4],[3,1,3,4],[5,2,5,4],[7,1,7,6],[450,1,450,6],[549,3,549,5],[550,3,550,5],[551,3,551,5],[552,3,552,5],[559,3,559,5],[553,3,553,5],[555,3,555,5],[556,3,556,5],[557,3,557,5],[558,3,558,5]]}
[]
[null,"Regierungsbezirk:",null,null,null,"wählen Sie Ihren Regierungsbezirk (zuerst ins Feld - dann Schalter rechts anklicken)"]
[null,"Gemeinde:",null,null,null,"-- bitte auswählen --"]
[null,"Bilanzjahr:",null,null,null,"-- bitte auswählen --",null,null,null,null,null,{"$f":"IF(F$2=\"wählen Sie Ihren Regierungsbezirk (zuerst ins Feld, dann Schalter rechts anklicken)\",1,0)","v":0}]
[]
[null,"Kto.-\ngr./\nart","Konten",null,null,"Bezeichnung","Euro-\nbetrag",null,null,null,null,{"$f":"IF(AND((LEFT(F3,1))<>\"1\",F2=\"Düsseldorf\"),1,0)","v":0}]
[null,null,null,null,null,null,null,null,null,null,null,{"$f":"IF(AND((LEFT(F3,1))<>\"3\",F2=\"Köln\"),1,0)","v":0}]
[null,"A K T I V A",null,null,null,null,null,null,null,null,null,{"$f":"IF(AND((LEFT(F3,1))<>\"5\",F2=\"Münster\"),1,0)","v":0}]
[null,null,null,null,null,null,null,null,null,null,null,{"$f":"IF(AND((LEFT(F3,1))<>\"7\",F2=\"Detmold\"),1,0)","v":0}]
[null,"00","Aufwendungen zur Erhaltung der gemeindlichen Leistungsfähigkeit",null,null,null,null,null,null,null,null,{"$f":"IF(AND((LEFT(F3,1))<>\"9\",F2=\"Arnsberg\"),1,0)","v":0}]
[null,"000","Aufwendungen zur Erhaltung der gemeindlichen Leistungsfähigkeit",null,null,null,null,null,null,null,null,{"$f":"IF(AND((LEFT(F3,1))<>\" \",F2=\"Verbände\"),1,0)","v":0}]
[null,null,"00001","Aufwendungen zur Erhaltung der gemeindlichen Leistungsfähigkeit - COVOD-19",null,null,null,null,null,null,null,{"$f":"SUM(L4:L11)","v":0}]
[null,null,"00002","Aufwendungen zur Erhaltung der gemeindlichen Leistungsfähigkeit - Ukraine",null,null,null,null,null,null,null,{"$f":"L12","v":0}]
[]
[null,"01 ","Immaterielle Vermögensgegenstände"]
[null,"011","Immaterielle Vermögensgegenstände (ImVG)"]
[null,null,"01110","Stand der AHK von immateriellen Vermögensgegenständen am 01.01. des Haushaltsjahres ",null,null,null,null,null,null,null,{"$f":"CHOOSE(MATCH($F2,Bezirke,0),Düsseldorf,Köln,Münster,Detmold,Arnsberg,Verbände)","v":{"$error":"#N/A"}}]
[null,null,"01111","Zugänge an immateriellen Vermögensgegenständen"]
[null,null,"01112","Abgänge von immateriellen Vermögensgegenständen "]
[null,null,"01113","Umbuchungen von immateriellen Vermögensgegenständen im Haushaltsjahr",null,null,null,null,null,null,null,null,"wählen Sie Ihren Regierungsbezirk (zuerst ins Feld - dann Schalter rechts anklicken);Düsseldorf;Köln;Münster;Detmold;Arnsberg;Verbände;"]
[null,null,"01114","Stand der AHK von immateriellen Vermögensgegenständen am 31.12. des Haushaltsjahres "]
[null,null,"01115","Kumulierte Abschreibungen bei immateriellen Vermögensgegenständen zum 31.12. des Vorjahres"]
[null,null,"01116","Abschreibungen bei immateriellen Vermögensgegenständen im Haushaltsjahr"]
[null,null,"01117","Zuschreibungen bei immateriellen Vermögensgegenständen im Haushaltsjahr"]
[null,null,"01118","Änderungen bei immateriellen Vermögensgegenständen durch Zu- und Abgänge sowie Umbuchungen im Haushaltsjahr"]
[null,null,"01119","Kumulierte Abschreibungen bei immateriellen Vermögensgegenständen zum 31.12. des Haushaltsjahres"]
[null,null,"01120","Buchwert der immateriellen Vermögensgegenstände am 31.12. des Haushaltsjahres"]
[null,null,"01121","Buchwert der immateriellen Vermögensgegenstände am 31.12. des Vorjahres"]
[]
[null,"02 ","Unbebaute Grundstücke und grundstücksgleiche Rechte"]
[null,"021","Grünflächen "]
[null,null,"02110","Stand der AHK von Grünflächen am 01.01. des Haushaltsjahres "]
[null,null,"02111","Zugänge an Grünflächen "]
[null,null,"02112","Abgänge von Grünflächen "]
[null,null,"02113","Umbuchungen von Grünflächen im Haushaltsjahr"]
[null,null,"02114","Stand der AHK von Grünflächen am 31.12. des Haushaltsjahres"]
[null,null,"02115","Kumulierte Abschreibungen bei Grünflächen zum 31.12. des Vorjahres"]
[null,null,"02116","Abschreibungen bei Grünflächen im Haushaltsjahr"]
[null,null,"02117","Zuschreibungen bei Grünflächen im Haushaltsjahr"]
[null,null,"02118","Änderungen bei Grünflächen durch Zu- und Abgänge sowie Umbuchungen im Haushaltsjahr"]
[null,null,"02119","Kumulierte Abschreibungen bei Grünflächen zum 31.12. des Haushaltsjahres"]
[null,null,"02120","Buchwert der Grünflächen am 31.12. des Haushaltsjahres"]
[null,null,"02121","Buchwert der Grünflächen am 31.12. des Vorjahres "]
[null,"022","Ackerland "]
[null,null,"02210","Stand der AHK von Ackerland am 01.01. des Haushaltsjahres "]
[null,null,"02211","Zugänge an Ackerland "]
[null,null,"02212","Abgänge von Ackerland "]
[null,null,"02213","Umbuchungen von Ackerland im Haushaltsjahr"]
[null,null,"02214","Stand der AHK von Ackerland am 31.12. des Haushaltsjahres"]
[null,null,"02215","Kumulierte Abschreibungen bei Ackerland zum 31.12. des Vorjahres"]
[null,null,"02216","Abschreibungen bei Ackerland im Haushaltsjahr"]
[null,null,"02217","Zuschreibungen bei Ackerland im Haushaltsjahr"]
[null,null,"02218","Änderungen bei Ackerland durch Zu- und Abgänge sowie Umbuchungen im Haushaltsjahr"]
[null,null,"02219","Kumulierte Abschreibungen bei Ackerland zum 31.12. des Haushaltsjahres"]
[null,null,"02220","Buchwert der Ackerland am 31.12. des Haushaltsjahres"]
[null,null,"02221","Buchwert der Ackerland am 31.12. des Vorjahres "]
[null,"023 ","Wald und Forsten"]
[null,null,"02310","Stand der AHK von Wald und Forsten am 01.01. des Haushaltsjahres "]
[null,null,"02311","Zugänge an Wald und Forsten "]
[null,null,"02312","Abgänge von Wald und Forsten "]
[null,null,"02313","Umbuchungen von Wald und Forsten im Haushaltsjahr"]
[null,null,"02314","Stand der AHK von Wald und Forsten am 31.12. des Haushaltsjahres"]
[null,null,"02315","Kumulierte Abschreibungen bei Wald und Forsten zum 31.12. des Vorjahres"]
[null,null,"02316","Abschreibungen bei Wald und Forsten im Haushaltsjahr"]
[null,null,"02317","Zuschreibungen bei Wald und Forsten im Haushaltsjahr"]
[null,null,"02318","Änderungen bei Wald und Forsten durch Zu- und Abgänge sowie Umbuchungen im Haushaltsjahr"]
[null,null,"02319","Kumulierte Abschreibungen bei Wald und Forsten zum 31.12. des Haushaltsjahres"]
[null,null,"02320","Buchwert der Wald und Forsten am 31.12. des Haushaltsjahres"]
[null,null,"02321","Buchwert der Wald und Forsten am 31.12. des Vorjahres "]
[null,"024","Sonstige unbebaute Grundstücke"]
[null,null,"02410","Stand der AHK von sonstigen unbebauten Grundstücken am 01.01. des Haushaltsjahres"]
[null,null,"02411","Zugänge an sonstigen unbebauten Grundstücken "]
[null,null,"02412","Abgänge von sonstigen unbebauten Grundstücken "]
[null,null,"02413","Umbuchungen von sonstigen unbebauten Grundstücken im Haushaltsjahr"]
[null,null,"02414","Stand der AHK von sonstigen unbebauten Grundstücken am 31.12. des Haushaltsjahres"]
[null,null,"02415","Kumulierte Abschreibungen bei sonstigen unbebauten Grundstücken zum 31.12. des Vorjahres"]
[null,null,"02416","Abschreibungen bei sonstigen unbebauten Grundstücken im Haushaltsjahr"]
[null,null,"02417","Zuschreibungen bei sonstigen unbebauten Grundstücken im Haushaltsjahr"]
[null,null,"02418","Änderungen bei sonstigen unbebauten Grundstücken durch Zu- und Abgänge sowie Umbuchungen im Haushaltsjahr"]
[null,null,"02419","Kumulierte Abschreibungen bei sonstigen unbebauten Grundstücken zum 31.12. des Haushaltsjahres"]
[null,null,"02420","Buchwert der sonstigen unbebauten Grundstücken am 31.12. des Haushaltsjahres"]
[null,null,"02421","Buchwert der sonstigen unbebauten Grundstücken am 31.12. des Vorjahres "]
[]
[null,"03 ","Bebaute Grundstücke und grundstücksgleiche Rechte"]
[null,"031","Grundstücke mit Kinder- und Jugendeinrichtungen"]
[null,null,"03110","Stand der AHK von Kinder- und Jugendeinrichtungen am 01.01. des Haushaltsjahres"]
[null,null,"03111","Zugänge an Kinder- und Jugendeinrichtungen "]
[null,null,"03112","Abgänge von Kinder- und Jugendeinrichtungen "]
[null,null,"03113","Umbuchungen von Kinder- und Jugendeinrichtungen im Haushaltsjahr"]
[null,null,"03114","Stand der AHK von Kinder- und Jugendeinrichtungen am 31.12. des Haushaltsjahres"]
[null,null,"03115","Kumulierte Abschreibungen bei Kinder- und Jugendeinrichtungen zum 31.12. des Vorjahres"]
[null,null,"03116","Abschreibungen bei Kinder- und Jugendeinrichtungen im Haushaltsjahr"]
[null,null,"03117","Zuschreibungen bei Kinder- und Jugendeinrichtungen im Haushaltsjahr"]
[null,null,"03118","Änderungen bei Kinder- und Jugendeinrichtungen durch Zu- und Abgänge sowie Umbuchungen im Haushaltsjahr"]
[null,null,"03119","Kumulierte Abschreibungen bei Kinder- und Jugendeinrichtungen zum 31.12. des Haushaltsjahres"]
[null,null,"03120","Buchwert der Kinder- und Jugendeinrichtungen am 31.12. des Haushaltsjahres"]
[null,null,"03121","Buchwert der Kinder- und Jugendeinrichtungen am 31.12. des Vorjahres "]
[null,"032","Grundstücke mit Schulen"]
[null,null,"03210","Stand der AHK von Schulen am 01.01. des Haushaltsjahres"]
[null,null,"03211","Zugänge an Schulen "]
[null,null,"03212","Abgänge von Schulen "]
[null,null,"03213","Umbuchungen von Schulen im Haushaltsjahr"]
[null,null,"03214","Stand der AHK von Schulen am 31.12. des Haushaltsjahres"]
[null,null,"03215","Kumulierte Abschreibungen bei Schulen zum 31.12. des Vorjahres"]
[null,null,"03216","Abschreibungen bei Schulen im Haushaltsjahr"]
[null,null,"03217","Zuschreibungen bei Schulen im Haushaltsjahr"]
[null,null,"03218","Änderungen bei Schulen durch Zu- und Abgänge sowie Umbuchungen im Haushaltsjahr"]
[null,null,"03219","Kumulierte Abschreibungen bei Schulen zum 31.12. des Haushaltsjahres"]
[null,null,"03220","Buchwert der Schulen am 31.12. des Haushaltsjahres"]
[null,null,"03221","Buchwert der Schulen am 31.12. des Vorjahres "]
[null,"033","Grundstücke mit Wohnbauten"]
[null,null,"03310","Stand der AHK von Wohnbauten am 01.01. des Haushaltsjahres"]
[null,null,"03311","Zugänge an Wohnbauten "]
[null,null,"03312","Abgänge von Wohnbauten "]
[null,null,"03313","Umbuchungen von Wohnbauten im Haushaltsjahr"]
[null,null,"03314","Stand der AHK von Wohnbauten am 31.12. des Haushaltsjahres"]
[null,null,"03315","Kumulierte Abschreibungen bei Wohnbauten zum 31.12. des Vorjahres"]
[null,null,"03316","Abschreibungen bei Wohnbauten im Haushaltsjahr"]
[null,null,"03317","Zuschreibungen bei Wohnbauten im Haushaltsjahr"]
[null,null,"03318","Änderungen bei Wohnbauten durch Zu- und Abgänge sowie Umbuchungen im Haushaltsjahr"]
[null,null,"03319","Kumulierte Abschreibungen bei Wohnbauten zum 31.12. des Haushaltsjahres"]
[null,null,"03320","Buchwert der Wohnbauten am 31.12. des Haushaltsjahres"]
[null,null,"03321","Buchwert der Wohnbauten am 31.12. des Vorjahres "]
[null,"039","Grundstücke mit sonstigen Dienst-, Geschäfts- und Betriebsgebäuden"]
[null,null,"03910","Stand der AHK von sonstigen Gebäuden am 01.01. des Haushaltsjahres"]
[null,null,"03911","Zugänge an sonstigen Gebäuden "]
[null,null,"03912","Abgänge von sonstigen Gebäuden "]
[null,null,"03913","Umbuchungen von sonstigen Gebäuden im Haushaltsjahr"]
[null,null,"03914","Stand der AHK von sonstigen Gebäuden am 31.12. des Haushaltsjahres"]
[null,null,"03915","Kumulierte Abschreibungen bei sonstigen Gebäuden zum 31.12. des Vorjahres"]
[null,null,"03916","Abschreibungen bei sonstigen Gebäuden im Haushaltsjahr"]
[null,null,"03917","Zuschreibungen bei sonstigen Gebäuden im Haushaltsjahr"]
[null,null,"03918","Änderungen bei sonstigen Gebäuden durch Zu- und Abgänge sowie Umbuchungen im Haushaltsjahr"]
[null,null,"03919","Kumulierte Abschreibungen bei sonstigen Gebäuden zum 31.12. des Haushaltsjahres"]
[null,null,"03920","Buchwert der sonstigen Gebäuden am 31.12. des Haushaltsjahres"]
[null,null,"03921","Buchwert der sonstigen Gebäuden am 31.12. des Vorjahres "]
[]
[null,"04 ","Infrastrukturvermögen"]
[null,"041","Grund und Boden des Infrastrukturvermögens"]
[null,null,"04110","Stand der AHK von Infrastrukturgrundstücken am 01.01. des Haushaltsjahres"]
[null,null,"04111","Zugänge an Infrastrukturgrundstücken "]
[null,null,"04112","Abgänge von Infrastrukturgrundstücken "]
[null,null,"04113","Umbuchungen von Infrastrukturgrundstücken im Haushaltsjahr"]
[null,null,"04114","Stand der AHK von Infrastrukturgrundstücken am 31.12. des Haushaltsjahres"]
[null,null,"04115","Kumulierte Abschreibungen bei Infrastrukturgrundstücken zum 31.12. des Vorjahres"]
[null,null,"04116","Abschreibungen bei Infrastrukturgrundstücken im Haushaltsjahr"]
[null,null,"04117","Zuschreibungen bei Infrastrukturgrundstücken im Haushaltsjahr"]
[null,null,"04118","Änderungen bei Infrastrukturgrundstücken durch Zu- und Abgänge sowie Umbuchungen im Haushaltsjahr"]
[null,null,"04119","Kumulierte Abschreibungen bei Infrastrukturgrundstücken zum 31.12. des Haushaltsjahres"]
[null,null,"04120","Buchwert der Infrastrukturgrundstücken am 31.12. des Haushaltsjahres"]
[null,null,"04121","Buchwert der Infrastrukturgrundstücken am 31.12. des Vorjahres "]
[null,"042","Brücken und Tunnel"]
[null,null,"04210","Stand der AHK von Brücken und Tunnel am 01.01. des Haushaltsjahres"]
[null,null,"04211","Zugänge an Brücken und Tunnel "]
[null,null,"04212","Abgänge von Brücken und Tunnel "]
[null,null,"04213","Umbuchungen von Brücken und Tunnel im Haushaltsjahr"]
[null,null,"04214","Stand der AHK von Brücken und Tunnel am 31.12. des Haushaltsjahres"]
[null,null,"04215","Kumulierte Abschreibungen bei Brücken und Tunnel zum 31.12. des Vorjahres"]
[null,null,"04216","Abschreibungen bei Brücken und Tunnel im Haushaltsjahr"]
[null,null,"04217","Zuschreibungen bei Brücken und Tunnel im Haushaltsjahr"]
[null,null,"04218","Änderungen bei Brücken und Tunnel durch Zu- und Abgänge sowie Umbuchungen im Haushaltsjahr"]
[null,null,"04219","Kumulierte Abschreibungen bei Brücken und Tunnel zum 31.12. des Haushaltsjahres"]
[null,null,"04220","Buchwert der Brücken und Tunnel am 31.12. des Haushaltsjahres"]
[null,null,"04221","Buchwert der Brücken und Tunnel am 31.12. des Vorjahres "]
[null,"043","Gleisanlagen mit Streckenausrüstung und Sicherheitsanlagen"]
[null,null,"04310","Stand der AHK von Gleisanlagen am 01.01. des Haushaltsjahres"]
[null,null,"04311","Zugänge an Gleisanlagen "]
[null,null,"04312","Abgänge von Gleisanlagen "]
[null,null,"04313","Umbuchungen von Gleisanlagen im Haushaltsjahr"]
[null,null,"04314","Stand der AHK von Gleisanlagen am 31.12. des Haushaltsjahres"]
[null,null,"04315","Kumulierte Abschreibungen bei Gleisanlagen zum 31.12. des Vorjahres"]
[null,null,"04316","Abschreibungen bei Gleisanlagen im Haushaltsjahr"]
[null,null,"04317","Zuschreibungen bei Gleisanlagen im Haushaltsjahr"]
[null,null,"04318","Änderungen bei Gleisanlagen durch Zu- und Abgänge sowie Umbuchungen im Haushaltsjahr"]
[null,null,"04319","Kumulierte Abschreibungen bei Gleisanlagen zum 31.12. des Haushaltsjahres"]
[null,null,"04320","Buchwert der Gleisanlagen am 31.12. des Haushaltsjahres"]
[null,null,"04321","Buchwert der Gleisanlagen am 31.12. des Vorjahres "]
[null,"044","Entwässerungs- und Abwasserbeseitigungsanlagen"]
[null,null,"04410","Stand der AHK von Abwasserbeseitigungsanlagen am 01.01. des Haushaltsjahres"]
[null,null,"04411","Zugänge an Abwasserbeseitigungsanlagen "]
[null,null,"04412","Abgänge von Abwasserbeseitigungsanlagen "]
[null,null,"04413","Umbuchungen von Abwasserbeseitigungsanlagen im Haushaltsjahr"]
[null,null,"04414","Stand der AHK von Abwasserbeseitigungsanlagen am 31.12. des Haushaltsjahres"]
[null,null,"04415","Kumulierte Abschreibungen bei Abwasserbeseitigungsanlagen zum 31.12. des Vorjahres"]
[null,null,"04416","Abschreibungen bei Abwasserbeseitigungsanlagen im Haushaltsjahr"]
[null,null,"04417","Zuschreibungen bei Abwasserbeseitigungsanlagen im Haushaltsjahr"]
[null,null,"04418","Änderungen bei Abwasserbeseitigungsanlagen durch Zu- und Abgänge sowie Umbuchungen im Haushaltsjahr"]
[null,null,"04419","Kumulierte Abschreibungen bei Abwasserbeseitigungsanlagen zum 31.12. des Haushaltsjahres"]
[null,null,"04420","Buchwert der Abwasserbeseitigungsanlagen am 31.12. des Haushaltsjahres"]
[null,null,"04421","Buchwert der Abwasserbeseitigungsanlagen am 31.12. des Vorjahres "]
[null,"045","Straßennetz mit Wegen, Plätzen und Verkehrslenkungsanlagen"]
[null,null,"04510","Stand der AHK des Straßennetzes am 01.01. des Haushaltsjahres "]
[null,null,"04511","Zugänge beim Straßennetz "]
[null,null,"04512","Abgänge beim Straßennetz "]
[null,null,"04513","Umbuchungen beim Straßennetz im Haushaltsjahr"]
[null,null,"04514","Stand der AHK des Straßennetzes am 31.12. des Haushaltsjahres"]
[null,null,"04515","Kumulierte Abschreibungen beim Straßennetz zum 31.12. des Vorjahres"]
[null,null,"04516","Abschreibungen beim Straßennetz im Haushaltsjahr"]
[null,null,"04517","Zuschreibungen beim Straßennetz im Haushaltsjahr"]
[null,null,"04518","Änderungen beim Straßennetz durch Zu- und Abgänge sowie Umbuchungen im Haushaltsjahr"]
[null,null,"04519","Kumulierte Abschreibungen beim Straßennetz zum 31.12. des Haushaltsjahres"]
[null,null,"04520","Buchwert des Straßennetzes am 31.12. des Haushaltsjahres"]
[null,null,"04521","Buchwert des Straßennetzes am 31.12. des Vorjahres "]
[null,"049","Sonstige Bauten des Infrastrukturvermögens"]
[null,null,"04910","Stand der AHK von sonstigen Infrastrukturbauten am 01.01. des Haushaltsjahres"]
[null,null,"04911","Zugänge an sonstigen Infrastrukturbauten "]
[null,null,"04912","Abgänge von sonstigen Infrastrukturbauten "]
[null,null,"04913","Umbuchungen von sonstigen Infrastrukturbauten im Haushaltsjahr"]
[null,null,"04914","Stand der AHK von sonstigen Infrastrukturbauten am 31.12. des Haushaltsjahres"]
[null,null,"04915","Kumulierte Abschreibungen bei sonstigen Infrastrukturbauten zum 31.12. des Vorjahres"]
[null,null,"04916","Abschreibungen bei sonstigen Infrastrukturbauten im Haushaltsjahr"]
[null,null,"04917","Zuschreibungen bei sonstigen Infrastrukturbauten im Haushaltsjahr"]
[null,null,"04918","Änderungen bei sonstigen Infrastrukturbauten durch Zu- und Abgänge sowie Umbuchungen im Haushaltsjahr"]
[null,null,"04919","Kumulierte Abschreibungen bei sonstigen Infrastrukturbauten zum 31.12. des Haushaltsjahres"]
[null,null,"04920","Buchwert der sonstigen Infrastrukturbauten am 31.12. des Haushaltsjahres"]
[null,null,"04921","Buchwert der sonstigen Infrastrukturbauten am 31.12. des Vorjahres "]
[]
[null,"05 ","Bauten auf fremdem Grund und Boden"]
[null,"051","Bauten auf fremdem Grund und Boden"]
[null,null,"05110","Stand der AHK von Bauten auf fremden Grund am 01.01. des Haushaltsjahres"]
[null,null,"05111","Zugänge an Bauten auf fremden Grund "]
[null,null,"05112","Abgänge von Bauten auf fremden Grund "]
[null,null,"05113","Umbuchungen von Bauten auf fremden Grund im Haushaltsjahr"]
[null,null,"05114","Stand der AHK von Bauten auf fremden Grund am 31.12. des Haushaltsjahres"]
[null,null,"05115","Kumulierte Abschreibungen bei Bauten auf fremden Grund zum 31.12. des Vorjahres"]
[null,null,"05116","Abschreibungen bei Bauten auf fremden Grund im Haushaltsjahr"]
[null,null,"05117","Zuschreibungen bei Bauten auf fremden Grund im Haushaltsjahr"]
[null,null,"05118","Änderungen bei Bauten auf fremden Grund durch Zu- und Abgänge sowie Umbuchungen im Haushaltsjahr"]
[null,null,"05119","Kumulierte Abschreibungen bei Bauten auf fremden Grund zum 31.12. des Haushaltsjahres"]
[null,null,"05120","Buchwert der Bauten auf fremden Grund am 31.12. des Haushaltsjahres"]
[null,null,"05121","Buchwert der Bauten auf fremden Grund am 31.12. des Vorjahres "]
[]
[null,"06 ","Kunstgegenstände, Kulturdenkmäler"]
[null,"061 ","Kunstgegenstände, Kulturdenkmäler"]
[null,null,"06110","Stand der AHK von Kulturgütern am 01.01. des Haushaltsjahres"]
[null,null,"06111","Zugänge an Kulturgütern "]
[null,null,"06112","Abgänge von Kulturgütern "]
[null,null,"06113","Umbuchungen von Kulturgütern im Haushaltsjahr"]
[null,null,"06114","Stand der AHK von Kulturgütern am 31.12. des Haushaltsjahres"]
[null,null,"06115","Kumulierte Abschreibungen bei Kulturgütern zum 31.12. des Vorjahres"]
[null,null,"06116","Abschreibungen bei Kulturgütern im Haushaltsjahr"]
[null,null,"06117","Zuschreibungen bei Kulturgütern im Haushaltsjahr"]
[null,null,"06118","Änderungen bei Kulturgütern durch Zu- und Abgänge sowie Umbuchungen im Haushaltsjahr"]
[null,null,"06119","Kumulierte Abschreibungen bei Kulturgütern zum 31.12. des Haushaltsjahres"]
[null,null,"06120","Buchwert der Kulturgütern am 31.12. des Haushaltsjahres"]
[null,null,"06121","Buchwert der Kulturgütern am 31.12. des Vorjahres "]
[]
[null,"07 ","Maschinen und technische Anlagen, Fahrzeuge"]
[null,"071 ","Maschinen und technische Anlagen, Fahrzeuge"]
[null,null,"07110","Stand der AHK von technischer Ausstattung am 01.01. des Haushaltsjahres"]
[null,null,"07111","Zugänge an technischer Ausstattung "]
[null,null,"07112","Abgänge von technischer Ausstattung "]
[null,null,"07113","Umbuchungen von technischer Ausstattung im Haushaltsjahr"]
[null,null,"07114","Stand der AHK von technischer Ausstattung am 31.12. des Haushaltsjahres"]
[null,null,"07115","Kumulierte Abschreibungen bei technischer Ausstattung zum 31.12. des Vorjahres"]
[null,null,"07116","Abschreibungen bei technischer Ausstattung im Haushaltsjahr"]
[null,null,"07117","Zuschreibungen bei technischer Ausstattung im Haushaltsjahr"]
[null,null,"07118","Änderungen bei technischer Ausstattung durch Zu- und Abgänge sowie Umbuchungen im Haushaltsjahr"]
[null,null,"07119","Kumulierte Abschreibungen bei technischer Ausstattung zum 31.12. des Haushaltsjahres"]
[null,null,"07120","Buchwert der technischer Ausstattung am 31.12. des Haushaltsjahres"]
[null,null,"07121","Buchwert der technischer Ausstattung am 31.12. des Vorjahres "]
[]
[null,"08 ","Betriebs- und Geschäftsausstattung"]
[null,"081 ","Betriebs- und Geschäftsausstattung"]
[null,null,"08110","Stand der AHK von Betriebs- und Geschäftsausstattung am 01.01. des Haushaltsjahres"]
[null,null,"08111","Zugänge an Betriebs- und Geschäftsausstattung "]
[null,null,"08112","Abgänge von Betriebs- und Geschäftsausstattung "]
[null,null,"08113","Umbuchungen von Betriebs- und Geschäftsausstattung im Haushaltsjahr"]
[null,null,"08114","Stand der AHK von Betriebs- und Geschäftsausstattung am 31.12. des Haushaltsjahres"]
[null,null,"08115","Kumulierte Abschreibungen bei Betriebs- und Geschäftsausstattung zum 31.12. des Vorjahres"]
[null,null,"08116","Abschreibungen bei Betriebs- und Geschäftsausstattung im Haushaltsjahr"]
[null,null,"08117","Zuschreibungen bei Betriebs- und Geschäftsausstattung im Haushaltsjahr"]
[null,null,"08118","Änderungen bei Betriebs- und Geschäftsausstattung durch Zu- und Abgänge sowie Umbuchungen im Haushaltsjahr"]
[null,null,"08119","Kumulierte Abschreibungen bei Betriebs- und Geschäftsausstattung zum 31.12. des Haushaltsjahres"]
[null,null,"08120","Buchwert der Betriebs- und Geschäftsausstattung am 31.12. des Haushaltsjahres"]
[null,null,"08121","Buchwert der Betriebs- und Geschäftsausstattung am 31.12. des Vorjahres "]
[]
[null,"09 ","Geleistete Anzahlungen, Anlagen im Bau"]
[null,"091 ","Geleistete Anzahlungen, Anlagen im Bau"]
[null,null,"09110","Stand der AHK von Anzahlungen und Anlagen im Bau am 01.01. des Haushaltsjahres"]
[null,null,"09111","Zugänge an Anzahlungen und Anlagen im Bau "]
[null,null,"09112","Abgänge von Anzahlungen und Anlagen im Bau "]
[null,null,"09113","Umbuchungen von Anzahlungen und Anlagen im Bau im Haushaltsjahr"]
[null,null,"09114","Stand der AHK von Anzahlungen und Anlagen im Bau am 31.12. des Haushaltsjahres"]
[null,null,"09115","Kumulierte Abschreibungen bei Anzahlungen und Anlagen im Bau zum 31.12. des Vorjahres"]
[null,null,"09116","Abschreibungen bei Anzahlungen und Anlagen im Bau im Haushaltsjahr"]
[null,null,"09117","Zuschreibungen bei Anzahlungen und Anlagen im Bau im Haushaltsjahr"]
[null,null,"09118","Änderungen bei Anzahlungen und Anlagen im Bau durch Zu- und Abgänge sowie Umbuchungen im Haushaltsjahr"]
[null,null,"09119","Kumulierte Abschreibungen bei Anzahlungen und Anlagen im Bau zum 31.12. des Haushaltsjahres"]
[null,null,"09120","Buchwert der Anzahlungen und Anlagen im Bau am 31.12. des Haushaltsjahres"]
[null,null,"09121","Buchwert der Anzahlungen und Anlagen im Bau am 31.12. des Vorjahres "]
[]
[null,"10 ","Anteile an verbundenen Unternehmen"]
[null,"101 ","Anteile an verbundenen Unternehmen"]
[null,null,"10110","Stand der AHK von Anteilen an verbundenen Unternehmen am 01.01. des Haushaltsjahres"]
[null,null,"10111","Zugänge an Anteilen an verbundenen Unternehmen "]
[null,null,"10112","Abgänge von Anteilen an verbundenen Unternehmen "]
[null,null,"10113","Umbuchungen von Anteilen an verbundenen Unternehmen im Haushaltsjahr"]
[null,null,"10114","Stand der AHK von Anteilen an verbundenen Unternehmen am 31.12. des Haushaltsjahres"]
[null,null,"10115","Kumulierte Abschreibungen bei Anteilen an verbundenen Unternehmen zum 31.12. des Vorjahres"]
[null,null,"10116","Abschreibungen bei Anteilen an verbundenen Unternehmen im Haushaltsjahr"]
[null,null,"10117","Zuschreibungen bei Anteilen an verbundenen Unternehmen im Haushaltsjahr"]
[null,null,"10118","Änderungen bei Anteilen an verbundenen Unternehmen durch Zu- und Abgänge sowie Umbuchungen im Haushaltsjahr"]
[null,null,"10119","Kumulierte Abschreibungen bei Anteilen an verbundenen Unternehmen zum 31.12. des Haushaltsjahres"]
[null,null,"10120","Buchwert der Anteilen an verbundenen Unternehmen am 31.12. des Haushaltsjahres"]
[null,null,"10121","Buchwert der Anteilen an verbundenen Unternehmen am 31.12. des Vorjahres "]
[]
[null,"11 ","Beteiligungen"]
[null,"111 ","Beteiligungen"]
[null,null,"11110","Stand der AHK von Beteiligungen am 01.01. des Haushaltsjahres"]
[null,null,"11111","Zugänge an Beteiligungen "]
[null,null,"11112","Abgänge von Beteiligungen "]
[null,null,"11113","Umbuchungen von Beteiligungen im Haushaltsjahr"]
[null,null,"11114","Stand der AHK von Beteiligungen am 31.12. des Haushaltsjahres"]
[null,null,"11115","Kumulierte Abschreibungen bei Beteiligungen zum 31.12. des Vorjahres"]
[null,null,"11116","Abschreibungen bei Beteiligungen im Haushaltsjahr"]
[null,null,"11117","Zuschreibungen bei Beteiligungen im Haushaltsjahr"]
[null,null,"11118","Änderungen bei Beteiligungen durch Zu- und Abgänge sowie Umbuchungen im Haushaltsjahr"]
[null,null,"11119","Kumulierte Abschreibungen bei Beteiligungen zum 31.12. des Haushaltsjahres"]
[null,null,"11120","Buchwert der Beteiligungen am 31.12. des Haushaltsjahres"]
[null,null,"11121","Buchwert der Beteiligungen am 31.12. des Vorjahres "]
[]
[null,"12 ","Sondervermögen"]
[null,"121 ","Sondervermögen"]
[null,null,"12110","Stand der AHK von Sondervermögen am 01.01. des Haushaltsjahres"]
[null,null,"12111","Zugänge an Sondervermögen "]
[null,null,"12112","Abgänge von Sondervermögen "]
[null,null,"12113","Umbuchungen von Sondervermögen im Haushaltsjahr"]
[null,null,"12114","Stand der AHK von Sondervermögen am 31.12. des Haushaltsjahres"]
[null,null,"12115","Kumulierte Abschreibungen bei Sondervermögen zum 31.12. des Vorjahres"]
[null,null,"12116","Abschreibungen bei Sondervermögen im Haushaltsjahr"]
[null,null,"12117","Zuschreibungen bei Sondervermögen im Haushaltsjahr"]
[null,null,"12118","Änderungen bei Sondervermögen durch Zu- und Abgänge sowie Umbuchungen im Haushaltsjahr"]
[null,null,"12119","Kumulierte Abschreibungen bei Sondervermögen zum 31.12. des Haushaltsjahres"]
[null,null,"12120","Buchwert der Sondervermögen am 31.12. des Haushaltsjahres"]
[null,null,"12121","Buchwert der Sondervermögen am 31.12. des Vorjahres "]
[]
[null,"13 ","Ausleihungen "]
[null,"131 ","Ausleihungen an verbundene Unternehmen"]
[null,null,"13110","Stand der AHK von Ausleihungen an verbundene Unternehmen am 01.01. des Haushaltsjahres"]
[null,null,"13111","Zugänge an Ausleihungen an verbundene Unternehmen "]
[null,null,"13112","Abgänge von Ausleihungen an verbundene Unternehmen "]
[null,null,"13113","Umbuchungen von Ausleihungen an verbundene Unternehmen im Haushaltsjahr"]
[null,null,"13114","Stand der AHK von Ausleihungen an verbundene Unternehmen am 31.12. des Haushaltsjahres"]
[null,null,"13115","Kumulierte Abschreibungen bei Ausleihungen an verbundene Unternehmen zum 31.12. des Vorjahres"]
[null,null,"13116","Abschreibungen bei Ausleihungen an verbundene Unternehmen im Haushaltsjahr"]
[null,null,"13117","Zuschreibungen bei Ausleihungen an verbundene Unternehmen im Haushaltsjahr"]
[null,null,"13118","Änderungen bei Ausleihungen an verbundene Unternehmen durch Zu- und Abgänge sowie Umbuchungen im Haushaltsjahr"]
[null,null,"13119","Kumulierte Abschreibungen bei Ausleihungen an verbundene Unternehmen zum 31.12. des Haushaltsjahres"]
[null,null,"13120","Buchwert der Ausleihungen an verbundene Unternehmen am 31.12. des Haushaltsjahres"]
[null,null,"13121","Buchwert der Ausleihungen an verbundene Unternehmen am 31.12. des Vorjahres "]
[null,"132 ","Ausleihungen an Beteiligungen"]
[null,null,"13210","Stand der AHK von Ausleihungen an Beteiligungen am 01.01. des Haushaltsjahres"]
[null,null,"13211","Zugänge an Ausleihungen an Beteiligungen "]
[null,null,"13212","Abgänge von Ausleihungen an Beteiligungen "]
[null,null,"13213","Umbuchungen von Ausleihungen an Beteiligungen im Haushaltsjahr"]
[null,null,"13214","Stand der AHK von Ausleihungen an Beteiligungen am 31.12. des Haushaltsjahres"]
[null,null,"13215","Kumulierte Abschreibungen bei Ausleihungen an Beteiligungen zum 31.12. des Vorjahres"]
[null,null,"13216","Abschreibungen bei Ausleihungen an Beteiligungen im Haushaltsjahr"]
[null,null,"13217","Zuschreibungen bei Ausleihungen an Beteiligungen im Haushaltsjahr"]
[null,null,"13218","Änderungen bei Ausleihungen an Beteiligungen durch Zu- und Abgänge sowie Umbuchungen im Haushaltsjahr"]
[null,null,"13219","Kumulierte Abschreibungen bei Ausleihungen an Beteiligungen zum 31.12. des Haushaltsjahres"]
[null,null,"13220","Buchwert der Ausleihungen an Beteiligungen am 31.12. des Haushaltsjahres"]
[null,null,"13221","Buchwert der Ausleihungen an Beteiligungen am 31.12. des Vorjahres "]
[null,"133 ","Ausleihungen an Sondervermögen"]
[null,null,"13310","Stand der AHK von Ausleihungen an Sondervermögen am 01.01. des Haushaltsjahres"]
[null,null,"13311","Zugänge an Ausleihungen an Sondervermögen "]
[null,null,"13312","Abgänge von Ausleihungen an Sondervermögen "]
[null,null,"13313","Umbuchungen von Ausleihungen an Sondervermögen im Haushaltsjahr"]
[null,null,"13314","Stand der AHK von Ausleihungen an Sondervermögen am 31.12. des Haushaltsjahres"]
[null,null,"13315","Kumulierte Abschreibungen bei Ausleihungen an Sondervermögen zum 31.12. des Vorjahres"]
[null,null,"13316","Abschreibungen bei Ausleihungen an Sondervermögen im Haushaltsjahr"]
[null,null,"13317","Zuschreibungen bei Ausleihungen an Sondervermögen im Haushaltsjahr"]
[null,null,"13318","Änderungen bei Ausleihungen an Sondervermögen durch Zu- und Abgänge sowie Umbuchungen im Haushaltsjahr"]
[null,null,"13319","Kumulierte Abschreibungen bei Ausleihungen an Sondervermögen zum 31.12. des Haushaltsjahres"]
[null,null,"13320","Buchwert der Ausleihungen an Sondervermögen am 31.12. des Haushaltsjahres"]
[null,null,"13321","Buchwert der Ausleihungen an Sondervermögen am 31.12. des Vorjahres "]
[null,"139 ","Sonstige Ausleihungen"]
[null,null,"13910","Stand der AHK von sonstige Ausleihungen am 01.01. des Haushaltsjahres"]
[null,null,"13911","Zugänge an sonstige Ausleihungen "]
[null,null,"13912","Abgänge von sonstige Ausleihungen "]
[null,null,"13913","Umbuchungen von sonstige Ausleihungen im Haushaltsjahr"]
[null,null,"13914","Stand der AHK von sonstige Ausleihungen am 31.12. des Haushaltsjahres"]
[null,null,"13915","Kumulierte Abschreibungen bei sonstige Ausleihungen zum 31.12. des Vorjahres"]
[null,null,"13916","Abschreibungen bei sonstige Ausleihungen im Haushaltsjahr"]
[null,null,"13917","Zuschreibungen bei sonstige Ausleihungen im Haushaltsjahr"]
[null,null,"13918","Änderungen bei sonstige Ausleihungen durch Zu- und Abgänge sowie Umbuchungen im Haushaltsjahr"]
[null,null,"13919","Kumulierte Abschreibungen bei sonstige Ausleihungen zum 31.12. des Haushaltsjahres"]
[null,null,"13920","Buchwert der sonstige Ausleihungen am 31.12. des Haushaltsjahres"]
[null,null,"13921","Buchwert der sonstige Ausleihungen am 31.12. des Vorjahres "]
[]
[null,"14 ","Wertpapiere "]
[null,"141 ","Wertpapiere des Anlagevermögens"]
[null,null,"14110","Stand der AHK von Wertpapieren des Anlagevermögens am 01.01. des Haushaltsjahres"]
[null,null,"14111","Zugänge an Wertpapieren des Anlagevermögens "]
[null,null,"14112","Abgänge von Wertpapieren des Anlagevermögens "]
[null,null,"14113","Umbuchungen von Wertpapieren des Anlagevermögens im Haushaltsjahr"]
[null,null,"14114","Stand der AHK von Wertpapieren des Anlagevermögens am 31.12. des Haushaltsjahres"]
[null,null,"14115","Kumulierte Abschreibungen bei Wertpapieren des Anlagevermögens zum 31.12. des Vorjahres"]
[null,null,"14116","Abschreibungen bei Wertpapieren des Anlagevermögens im Haushaltsjahr"]
[null,null,"14117","Zuschreibungen bei Wertpapieren des Anlagevermögens im Haushaltsjahr"]
[null,null,"14118","Änderungen bei Wertpapieren des Anlagevermögens durch Zu- und Abgänge sowie Umbuchungen im Haushaltsjahr"]
[null,null,"14119","Kumulierte Abschreibungen bei Wertpapieren des Anlagevermögens zum 31.12. des Haushaltsjahres"]
[null,null,"14120","Buchwert der Wertpapieren des Anlagevermögens am 31.12. des Haushaltsjahres"]
[null,null,"14121","Buchwert der Wertpapieren des Anlagevermögens am 31.12. des Vorjahres "]
[null,"146 ","Wertpapiere des Umlaufvermögens"]
[null,null,14610,"Wertpapiere des Umlaufvermögens"]
[]
[null,"15 ","Vorräte"]
[null,"151","Roh-, Hilfs- und Betriebsstoffe, Waren"]
[null,null,"15110","Buchwert der Vorräte am 31.12. des Haushaltsjahres"]
[null,null,"15111","Buchwert der Vorräte am 31.12. des Vorjahres"]
[null,"152","Geleistete Anzahlungen für Umlaufvermögen "]
[null,null,"15210","Buchwert der geleisteten Anzahlungen für Umlaufvermögen am 31.12. des Haushaltsjahres"]
[null,null,"15211","Buchwert der geleisteten Anzahlungen für Umlaufvermögen am 31.12. des Vorjahres"]
[]
[null,"16 ","Öffentlich-rechtliche Forderungen und Forderungen aus Transferleistungen"]
[null,167,"Öffentlich-rechtliche Forderungen und Forderungen aus Transferleistungen"]
[null,null,"16710","Gesamtbetrag der öffentl.-rechtl. Forderungen u. Forderungen aus Transferleistungen am 31.12. des Hhjahres"]
[null,null,"16711","Öffentl.-rechtl. Forderungen u. Forderungen aus Transferleistungen mit einer Restlaufzeit von bis zu 1 Jahr"]
[null,null,"16712","Öffentl.-rechtl. Forderungen u. Forderungen aus Transferleistungen mit einer Restlaufzeit von 1 bis 5 Jahren"]
[null,null,"16713","Öffentl.-rechtl. Forderungen u. Forderungen aus Transferleistungen mit einer Restlaufzeit von mehr als 5 Jahren"]
[null,null,"16714","Gesamtbetrag der öffentl.-rechtl. Forderungen u. Forderungen aus Transferleistungen am 31.12. des Vorjahres"]
[]
[null,"17 ","Privatrechtliche Forderungen, sonstige Vermögensgegenstände"]
[null,177,"Privatrechtliche Forderungen"]
[null,null,"17710","Gesamtbetrag der privatrechtlichen Forderungen am 31.12. des Haushaltsjahres"]
[null,null,"17712","Privatrechtliche Forderungen mit einer Restlaufzeit von bis zu 1 Jahr"]
[null,null,"17714","Privatrechtliche Forderungen mit einer Restlaufzeit von 1 bis 5 Jahren"]
[null,null,"17716","Privatrechtliche Forderungen mit einer Restlaufzeit von mehr als 5 Jahren"]
[null,null,"17718","Gesamtbetrag der privatrechtlichen Forderungen am 31.12. des Vorjahres"]
[null,179,"Sonstige Vermögensgegenstände"]
[null,null,"17910","Sonstige Vermögensgegenstände  am 31.12. des Haushaltsjahres"]
[null,null,"17911","Sonstige Vermögensgegenstände  am 31.12. des Vorjahres"]
[]
[null,"18  ","Liquide Mittel"]
[null,189,"Liquide Mittel"]
[null,null,"18910","Liquide Mittel"]
[]
[null,"19 ","Aktive Rechnungsabgrenzung und Überschuldung"]
[null,"191 ","Aktive Rechnungsabgrenzung"]
[null,null,"19110","Aktive Rechnungsabgrenzung"]
[null,"199","Überschuldung"]
[null,null,"19910","Bestand des nicht durch Eigenkapital gedeckten Fehlbetrages zum 31.12. des Vorjahres"]
[null,null,"19916","Verrechnung bilanzieller Verlustvorträge mit Jahresüberschüssem oder der allgemeinen Rücklage nach § 95 Abs. 2 Satz 3 GO NRW"]
[null,null,"19917","Verwendung des Vorjahresergebnisses zum 01.01. des Haushaltsjahres"]
[null,null,"19912","Verrechnungen mit der allgemeinen Rücklage nach § 44 Abs.3 KomHVO im Haushaltsjahr"]
[null,null,"19913","Veränderungen der Sonderrücklage (auch aus § 44 Abs. 4 KomHVO)"]
[null,null,"19915","Bestand des nicht durch Eigenkapital gedeckten Fehlbetrages zum 31.12. des Haushaltsjahres"]
[]
[null,"P A S S I V A"]
[]
[null,"20 ","Eigenkapital"]
[null,"201","Allgemeine Rücklage"]
[null,null,"20110","Bestand der allgemeinen Rücklage zum 31.12. des Vorjahres (vor Verrechnung des Jahresergebnisses)"]
[null,null,"20116","Verrechnung bilanzieller Verlustvorträge mit Jahresüberschüssem oder der allgemeinen Rücklage nach § 95 Abs. 2 Satz 3 GO NRW"]
[null,null,"20117","Verwendung des Vorjahresergebnisses zum 01.01. des Haushaltsjahres"]
[null,null,"20112","Verrechnungen mit der allgemeinen Rücklage nach § 44 Abs.3 KomHVO im Haushaltsjahr"]
[null,null,"20113","Veränderungen der Sonderrücklage (auch aus § 44 Abs. 4 KomHVO)"]
[null,null,"20115","Bestand der allgemeinen Rücklage zum 31.12. des Haushaltsjahres"]
[null,"203","Sonderrücklagen"]
[null,null,"20310","Bestand an Sonderrücklagen zum 31.12. des Vorjahres (vor Verrechnung des Jahresergebnisses)"]
[null,null,"20316","Verrechnung bilanzieller Verlustvorträge mit Jahresüberschüssem oder der allgemeinen Rücklage nach § 95 Abs. 2 Satz 3 GO NRW"]
[null,null,"20317","Verwendung des Vorjahresergebnisses zum 01.01. des Haushaltsjahres"]
[null,null,"20312","Verrechnungen mit der allgemeinen Rücklage nach § 44 Abs.3 KomHVO im Haushaltsjahr"]
[null,null,"20313","Veränderungen der Sonderrücklage (auch aus § 44 Abs. 4 KomHVO)"]
[null,null,"20315","Bestand an Sonderrücklagen zum 31.12. des Haushaltsjahres"]
[null,"204","Ausgleichsrücklage"]
[null,null,"20410","Bestand der Ausgleichsrücklage zum 31.12. des Vorjahres (vor Verrechnung des Jahresergebnisses)"]
[null,null,"20416","Verrechnung bilanzieller Verlustvorträge mit Jahresüberschüssem oder der allgemeinen Rücklage nach § 95 Abs. 2 Satz 3 GO NRW"]
[null,null,"20417","Verwendung des Vorjahresergebnisses zum 01.01. des Haushaltsjahres"]
[null,null,"20412","Verrechnungen mit der allgemeinen Rücklage nach § 44 Abs.3 KomHVO im Haushaltsjahr"]
[null,null,"20413","Veränderungen der Sonderrücklage (auch aus § 44 Abs. 4 KomHVO)"]
[null,null,"20415","Bestand der Ausgleichsrücklage zum 31.12. des Haushaltsjahres"]
[null,207,"Bilanzieller Verlustvortrag"]
[null,null,"20710","Bestand des bilanziellen Verlustvortrages zum 31.12. des Vorjahres"]
[null,null,"20716","Verrechnung bilanzieller Verlustvorträge mit Jahresüberschüssem oder der allgemeinen Rücklage nach § 95 Abs. 2 Satz 3 GO NRW"]
[null,null,"20717","Verwendung des Vorjahresergebnisses zum 01.01. des Haushaltsjahres"]
[null,null,"20712","Verrechnungen mit der allgemeinen Rücklage nach § 44 Abs.3 KomHVO im Haushaltsjahr"]
[null,null,"20713","Veränderungen der Sonderrücklage (auch aus § 44 Abs. 4 KomHVO)"]
[null,null,"20715","Bestand des bilanziellen Verlustvortrages zum 31.12. des Haushaltsjahres"]
[null,"208","Jahresüberschuss/Jahresfehlbetrag"]
[null,null,"20810","Bestand des Jahresüberschusses/-fehlbetrages zum 31.12. des Vorjahres (vor Verrechnung des Jahresergebnisses)"]
[null,null,"20816","Verrechnung bilanzieller Verlustvorträge mit Jahresüberschüssem oder der allgemeinen Rücklage nach § 95 Abs. 2 Satz 3 GO NRW"]
[null,null,"20817","Verwendung des Vorjahresergebnisses zum 01.01. des Haushaltsjahres"]
[null,null,"20812","Verrechnungen mit der allgemeinen Rücklage nach § 44 Abs.3 KomHVO im Haushaltsjahr"]
[null,null,"20813","Veränderungen der Sonderrücklage (auch aus § 44 Abs. 4 KomHVO)"]
[null,null,"20815","Bestand des Jahresüberschusses/-fehlbetrages zum 31.12. des Haushaltsjahres"]
[]
[null,"23 ","Sonderposten"]
[null,"231","Sonderposten aus Zuwendungen"]
[null,null,"23110","Sonderposten aus Zuwendungen"]
[null,"232","Sonderposten aus Beiträgen"]
[null,null,"23210","Sonderposten aus Beiträgen"]
[null,"233","Sonderposten für den Gebührenausgleich"]
[null,null,"23310","Sonderposten für den Gebührenausgleich"]
[null,"239","Sonstige Sonderposten"]
[null,null,"23910","Sonstige Sonderposten"]
[]
[null,"25 ","Pensionsrückstellungen"]
[null,"251 ","Pensionsrückstellungen"]
[null,null,"25110","Pensionsrückstellungen"]
[]
[null,"26 ","Rückstellungen für Deponien und Altlasten"]
[null,"261 ","Rückstellungen für Deponien und Altlasten"]
[null,null,"26110","Rückstellungen für Deponien und Altlasten"]
[]
[null,"27 ","Instandhaltungsrückstellungen"]
[null,"271 ","Instandhaltungsrückstellungen"]
[null,null,"27110","Instandhaltungsrückstellungen"]
[]
[null,"28 ","Sonstige Rückstellungen"]
[null,"281 ","Sonstige Rückstellungen"]
[null,null,"28110","Sonstige Rückstellungen"]
[]
[null,"30 ","Anleihen"]
[null,302,"Anleihen für Investitionen"]
[null,null,"30210","Gesamtbetrag der Anleihen am 31.12. des Haushaltsjahres"]
[null,null,"30211","Anleihen mit einer Restlaufzeit von bis zu 1 Jahr"]
[null,null,"30212","Anleihen mit einer Restlaufzeit von 1 bis 5 Jahren"]
[null,null,"30213","Anleihen mit einer Restlaufzeit von mehr als 5 Jahren"]
[null,null,"30214","Gesamtbetrag der Anleihen am 31.12. des Vorjahres"]
[null,"303","Anleihen zur Liquiditätssicherung"]
[null,null,"30310","Gesamtbetrag der Anleihen am 31.12. des Haushaltsjahres"]
[null,null,"30311","Anleihen mit einer Restlaufzeit von bis zu 1 Jahr"]
[null,null,"30312","Anleihen mit einer Restlaufzeit von 1 bis 5 Jahren"]
[null,null,"30313","Anleihen mit einer Restlaufzeit von mehr als 5 Jahren"]
[null,null,"30314","Gesamtbetrag der Anleihen am 31.12. des Vorjahres"]
[]
[null,"32 ","Verbindlichkeiten aus Krediten für Investitionen"]
[null,"321","Kredite für Investitionen von verbundenen Unternehmen"]
[null,null,"32110","Gesamtbetrag der Investitionskredite von verbundenen Unternehmen am 31.12. des Haushaltsjahres"]
[null,null,"32111","Investitionskredite von verbundenen Unternehmen mit einer Restlaufzeit von bis zu 1 Jahr"]
[null,null,"32112","Investitionskredite von verbundenen Unternehmen mit einer Restlaufzeit von 1 bis 5 Jahren"]
[null,null,"32113","Investitionskredite von verbundenen Unternehmen mit einer Restlaufzeit von mehr als 5 Jahren "]
[null,null,"32114","Gesamtbetrag der Investitionskredite von verbundenen Unternehmen am 31.12. des Vorjahres"]
[null,"322","Kredite für Investitionen von Beteiligungen"]
[null,null,"32210","Gesamtbetrag der Investitionskredite von Beteiligungen am 31.12. des Haushaltsjahres"]
[null,null,"32211","Investitionskredite von Beteiligungen mit einer Restlaufzeit von bis zu 1 Jahr"]
[null,null,"32212","Investitionskredite von Beteiligungen mit einer Restlaufzeit von 1 bis 5 Jahren"]
[null,null,"32213","Investitionskredite von Beteiligungen mit einer Restlaufzeit von mehr als 5 Jahren "]
[null,null,"32214","Gesamtbetrag der Investitionskredite von Beteiligungen am 31.12. des Vorjahres"]
[null,"323","Kredite für Investitionen von Sondervermögen"]
[null,null,"32310","Gesamtbetrag der Investitionskredite von Sondervermögen am 31.12. des Haushaltsjahres"]
[null,null,"32311","Investitionskredite von Sondervermögen mit einer Restlaufzeit von bis zu 1 Jahr"]
[null,null,"32312","Investitionskredite von Sondervermögen mit einer Restlaufzeit von 1 bis 5 Jahren"]
[null,null,"32313","Investitionskredite von Sondervermögen mit einer Restlaufzeit von mehr als 5 Jahren "]
[null,null,"32314","Gesamtbetrag der Investitionskredite von Sondervermögen am 31.12. des Vorjahres"]
[null,326,"Kredite für Investitionen vom öffentlichen Bereich"]
[null,null,"32610","Gesamtbetrag der Investitionskredite vom öffentlichen Bereich am 31.12. des Haushaltsjahres"]
[null,null,"32611","Investitionskredite vom öffentlichen Bereich mit einer Restlaufzeit von bis zu 1 Jahr"]
[null,null,"32612","Investitionskredite vom öffentlichen Bereich mit einer Restlaufzeit von 1 bis 5 Jahren"]
[null,null,"32613","Investitionskredite vom öffentlichen Bereich mit einer Restlaufzeit von mehr als 5 Jahren "]
[null,null,"32614","Gesamtbetrag der Investitionskredite vom öffentlichen Bereich am 31.12. des Vorjahres"]
[null,327,"Kredite für Investitionen von Kreditinstituten"]
[null,null,"32710","Gesamtbetrag der Investitionskredite von Kreditinstituten am 31.12. des Haushaltsjahres"]
[null,null,"32711","Investitionskredite von Kreditinstituten mit einer Restlaufzeit von bis zu 1 Jahr"]
[null,null,"32712","Investitionskredite von Kreditinstituten mit einer Restlaufzeit von 1 bis 5 Jahren"]
[null,null,"32713","Investitionskredite von Kreditinstituten mit einer Restlaufzeit von mehr als 5 Jahren"]
[null,null,"32714","Gesamtbetrag der Investitionskredite von Kreditinstituten am 31.12. des Vorjahres"]
[]
[null,"33 ","Verbindlichkeiten aus Krediten zur Liquiditätssicherung"]
[null,333,"Verbindlichkeiten aus Krediten zur Liquiditätssicherung"]
[null,null,"33310","Gesamtbetrag der Liquiditätskredite am 31.12 des Haushaltsjahres"]
[null,null,"33311","Liquiditätskredite mit einer Restlaufzeit bis zu 1 Jahr"]
[null,null,"33312","Liquiditätskredite mit einer Restlaufzeit von 1 bis 5 Jahren"]
[null,null,"33313","Liquiditätskredite mit einer Restlaufzeit von mehr als 5 Jahren"]
[null,null,"33314","Gesamtbetrag der Liquiditätskredite am 31.12. des Vorjahres"]
[]
[null,"34","Verbindlichkeiten aus Vorgängen, die Kreditaufnahmen wirtschaftlich gleichkommen"]
[null,"341","Verbindlichkeiten aus Vorgängen, die Kreditaufnahmen wirtschaftlich gleichkommen"]
[null,null,"34110","Gesamtbetrag der Verbindlichkeiten aus kreditähnlichen Rechtsgeschäften am 31.12. des Haushaltsjahres"]
[null,null,"34111","Verbindlichkeiten aus kreditähnlichen Rechtsgeschäften mit einer Restlaufzeit von bis zu 1 Jahr"]
[null,null,"34112","Verbindlichkeiten aus kreditähnlichen Rechtsgeschäften mit einer Restlaufzeit von 1 bis 5 Jahren "]
[null,null,"34113","Verbindlichkeiten aus kreditähnlichen Rechtsgeschäften mit einer Restlaufzeit von mehr als 5 Jahren "]
[null,null,"34114","Gesamtbetrag der Verbindlichkeiten aus kreditähnlichen Rechtsgeschäften am 31.12. des Vorjahres"]
[]
[null,"35 ","Verbindlichkeiten aus Lieferungen und Leistungen"]
[null,"351 ","Verbindlichkeiten aus Lieferungen und Leistungen"]
[null,null,"35110","Gesamtbetrag der Verbindlichkeiten aus Lieferungen und Leistungen am 31.12. des Haushaltsjahres"]
[null,null,"35111","Verbindlichkeiten aus Lieferungen und Leistungen mit einer Restlaufzeit von bis zu 1 Jahr"]
[null,null,"35112","Verbindlichkeiten aus Lieferungen und Leistungen mit einer Restlaufzeit von 1 bis 5 Jahren "]
[null,null,"35113","Verbindlichkeiten aus Lieferungen und Leistungen mit einer Restlaufzeit von mehr als 5 Jahren "]
[null,null,"35114","Gesamtbetrag der Verbindlichkeiten aus Lieferungen und Leistungen am 31.12. des Vorjahres"]
[]
[null,"36 ","Verbindlichkeiten aus Transferleistungen"]
[null,"361 ","Verbindlichkeiten aus Transferleistungen"]
[null,null,"36110","Gesamtbetrag der Verbindlichkeiten aus Transferleistungen am 31.12. des Haushaltsjahres"]
[null,null,"36111","Verbindlichkeiten aus Transferleistungen mit einer Restlaufzeit von bis zu 1 Jahr"]
[null,null,"36112","Verbindlichkeiten aus Transferleistungen mit einer Restlaufzeit von 1 bis 5 Jahren "]
[null,null,"36113","Verbindlichkeiten aus Transferleistungen mit einer Restlaufzeit von mehr als 5 Jahren "]
[null,null,"36114","Gesamtbetrag der Verbindlichkeiten aus Transferleistungen am 31.12. des Vorjahres"]
[]
[null,"37 ","Sonstige Verbindlichkeiten"]
[null,"371","Sonstige Verbindlichkeiten"]
[null,null,"37110","Gesamtbetrag der sonstigen Verbindlichkeiten am 31.12. des Haushaltsjahres"]
[null,null,"37111","Sonstige Verbindlichkeiten mit einer Restlaufzeit von bis zu 1 Jahr"]
[null,null,"37112","Sonstige Verbindlichkeiten mit einer Restlaufzeit von 1 bis 5 Jahren"]
[null,null,"37113","Sonstige Verbindlichkeiten mit einer Restlaufzeit von mehr als 5 Jahren"]
[null,null,"37114","Gesamtbetrag der sonstigen Verbindlichkeiten am 31.12. des Vorjahres"]
[]
[null,"38","Erhaltene Anzahlungen"]
[null,381,"Erhaltene Anzahlungen"]
[null,null,"38110","Erhaltene Anzahlungen am 31.12. des Haushaltsjahres"]
[null,null,"38111","Erhaltene Anzahlungen am 31.12. des Vorjahres"]
[]
[null,"39 ","Passive Rechnungsabgrenzung (RAP)"]
[null,"391","Passive Rechnungsabgrenzung "]
[null,null,"39110","Passive Rechnungsabgrenzung   "]

{"sheet":"Bilanz","index":1,"n_rows":68,"n_cols":9,"rows_kept":68,"cut":false,"hidden":false,"merged":[]}
[]
["A k t i v a ",null,null,null,null,null,"P a s s i v a"]
[]
["0     Aufwendungen zur Erhaltung der gemeindlichen Leistungsfähigkeit *",null,null,{"$f":"SUM(Eingabeblatt!G12:G13)","v":0}]
[]
["1     Anlagevermögen",null,null,{"$f":"SUM(D8,D10,D34)","v":0},null,null,"1     Eigenkapital",null,{"$f":"I7+I8+I9+I10+I11","v":0}]
[null,null,null,null,null,null,null,"1.1      Allgemeine Rücklage",{"$f":"Eingabeblatt!G460","v":0}]
[null,"1.1     Immaterielle Vermögensgegenstände",null,{"$f":"Eingabeblatt!G27","v":0},null,null,null,"1.2     Sonderrücklagen",{"$f":"Eingabeblatt!G467","v":0}]
[null,null,null,null,null,null,null,"1.3     Ausgleichsrücklage",{"$f":"Eingabeblatt!G474","v":0}]
[null,"1.2    Sachanlagen",null,{"$f":"D11+D16+D21+D28+D29+D30+D31+D32","v":0},null,null,null,"1.4     Bilanzieller Verlustvortrag",{"$f":"Eingabeblatt!G481","v":0}]
[null,null,"1.2.1      Unbebaute Grundstücke und grundstücksgleiche Rechte",{"$f":"Eingabeblatt!G42+Eingabeblatt!G55+Eingabeblatt!G68+Eingabeblatt!G81","v":0},null,null,null,"1.5    Jahresüberschuss/-fehlbetrag",{"$f":"Eingabeblatt!G488","v":0}]
[null,null,"1.2.1.1       Grünflächen",{"$f":"Eingabeblatt!G42","v":0}]
[null,null,"1.2.1.2      Ackerland ",{"$f":"Eingabeblatt!G55","v":0},null,null,"2    Sonderposten",null,{"$f":"I14+I15+I16+I17","v":0}]
[null,null,"1.2.1.3      Wald, Forsten",{"$f":"Eingabeblatt!G68","v":0},null,null,null,"2.1      für Zuwendungen",{"$f":"Eingabeblatt!G492","v":0}]
[null,null,"1.2.1.4      Sonstige unbebaute Grundstücke",{"$f":"Eingabeblatt!G81","v":0},null,null,null,"2.2     für Beiträge",{"$f":"Eingabeblatt!G494","v":0}]
[null,null,"1.2.2      Bebaute Grundstücke und grundstücksgleiche Rechte",{"$f":"Eingabeblatt!G96+Eingabeblatt!G109+Eingabeblatt!G122+Eingabeblatt!G135","v":0},null,null,null,"2.3     für den Gebührenausgleich",{"$f":"Eingabeblatt!G496","v":0}]
[null,null,"1.2.2.1      Kinder- und Jugendeinrichtungen",{"$f":"Eingabeblatt!G96","v":0},null,null,null,"2.4     Sonstige Sonderposten",{"$f":"Eingabeblatt!G498","v":0}]
[null,null,"1.2.2.2     Schulen",{"$f":"Eingabeblatt!G109","v":0}]
[null,null,"1.2.2.3     Wohnbauten",{"$f":"Eingabeblatt!G122","v":0},null,null,"3    Rückstellungen",null,{"$f":"I20+I21+I22+I23","v":0}]
[null,null,"1.2.2.4     Sonstige Dienst-, Geschäfts- und Betriebsgebäude",{"$f":"Eingabeblatt!G135","v":0},null,null,null,"3.1      Pensionsrückstellungen",{"$f":"Eingabeblatt!G502","v":0}]
[null,null,"1.2.3     Infrastrukturvermögen",{"$f":"Eingabeblatt!G150+Eingabeblatt!G163+Eingabeblatt!G176+Eingabeblatt!G189+Eingabeblatt!G202+Eingabeblatt!G215","v":0},null,null,null,"3.2     Rückstellungen für Deponien und Altlasten",{"$f":"Eingabeblatt!G506","v":0}]
[null,null,"1.2.3.1      Grund und Boden des Infrastrukturvermögens",{"$f":"Eingabeblatt!G150","v":0},null,null,null,"3.3     Instandhaltungsrückstellungen",{"$f":"Eingabeblatt!G510","v":0}]
[null,null,"1.2.3.2     Brücken und Tunnel",{"$f":"Eingabeblatt!G163","v":0},null,null,null,"3.4     Sonstige Rückstellungen",{"$f":"Eingabeblatt!G514","v":0}]
[null,null,"1.2.3.3     Gleisanlagen mit Streckenausrüstung und Sicherheitsanlagen",{"$f":"Eingabeblatt!G176","v":0}]
[null,null,"1.2.3.4     Entwässerungs- und Abwasserbeseitigungsanlagen",{"$f":"Eingabeblatt!G189","v":0},null,null,"4    Verbindlichkeiten",null,{"$f":"SUM(I27,I31,I38,I40,I42,I44,I46,I48)","v":0}]
[null,null,"1.2.3.5     Straßennetz mit Wegen, Plätzen und Verkehrslenkungsanlagen",{"$f":"Eingabeblatt!G202","v":0}]
[null,null,"1.2.3.6     Sonstige Bauten des Infrastrukturvermögens",{"$f":"Eingabeblatt!G215","v":0},null,null,null,"4.1      Anleihen",{"$f":"SUM(I28:I29)","v":0}]
[null,null,"1.2.4     Bauten auf fremdem Grund und Boden",{"$f":"Eingabeblatt!G230","v":0},null,null,null,"4.1.1       für Investitionen",{"$f":"Eingabeblatt!G518","v":0}]
[null,null,"1.2.5     Kunstgegenstände, Kulturdenkmäler",{"$f":"Eingabeblatt!G245","v":0},null,null,null,"4.1.1       zur Liquiditätssicherung",{"$f":"Eingabeblatt!G524","v":0}]
[null,null,"1.2.6     Maschinen und technische Anlagen, Fahrzeuge",{"$f":"Eingabeblatt!G260","v":0}]
[null,null,"1.2.7     Betriebs- und Geschäftsausstattung",{"$f":"Eingabeblatt!G275","v":0},null,null,null,"4.2     Verbindlichkeiten aus Krediten für Investitionen",{"$f":"SUM(I32:I36)","v":0}]
[null,null,"1.2.8     Geleistete Anzahlungen, Anlagen im Bau",{"$f":"Eingabeblatt!G290","v":0},null,null,null,"4.2.1       von verbundenen Unternehmen",{"$f":"Eingabeblatt!G532","v":0}]
[null,null,null,null,null,null,null,"4.2.2      von Beteiligungen",{"$f":"Eingabeblatt!G538","v":0}]
[null,"1.3     Finanzanlagen",null,{"$f":"D35+D36+D37+D38+D39","v":0},null,null,null,"4.2.3      von Sondervermögen",{"$f":"Eingabeblatt!G544","v":0}]
[null,null,"1.3.1       Anteile an verbundenen Unternehmen",{"$f":"Eingabeblatt!G305","v":0},null,null,null,"4.2.4      vom öffentlichen Bereich",{"$f":"Eingabeblatt!G550","v":0}]
[null,null,"1.3.2      Beteiligungen",{"$f":"Eingabeblatt!G320","v":0},null,null,null,"4.2.5      von Kreditinstituten",{"$f":"Eingabeblatt!G556","v":0}]
[null,null,"1.3.3      Sondervermögen",{"$f":"Eingabeblatt!G335","v":0}]
[null,null,"1.3.4      Wertpapiere des Anlagevermögens",{"$f":"Eingabeblatt!G404","v":0},null,null,null,"4.3     Verbindlichkeiten aus Krediten zur Liquiditätssicherung",{"$f":"Eingabeblatt!G564","v":0}]
[null,null,"1.3.5      Ausleihungen ",{"$f":"Eingabeblatt!G350+Eingabeblatt!G363+Eingabeblatt!G376+Eingabeblatt!G389","v":0}]
[null,null,"1.3.5.1       an verbundene Unternehmen",{"$f":"Eingabeblatt!G350","v":0},null,null,null,"4.4     Verbindlichkeiten aus Vorgängen, die Kreditaufnahmen wirtschaftlich gleichkommen",{"$f":"Eingabeblatt!G572","v":0}]
[null,null,"1.3.5.2      an Beteiligungen",{"$f":"Eingabeblatt!G363","v":0}]
[null,null,"1.3.5.3      an Sondervermögen",{"$f":"Eingabeblatt!G376","v":0},null,null,null,"4.5     Verbindlichkeiten aus Lieferungen und Leistungen",{"$f":"Eingabeblatt!G580","v":0}]
[null,null,"1.3.5.4      Sonstige Ausleihungen",{"$f":"Eingabeblatt!G389","v":0}]
[null,null,null,null,null,null,null,"4.6     Verbindlichkeiten aus Transferleistungen",{"$f":"Eingabeblatt!G588","v":0}]
["2     Umlaufvermögen",null,null,{"$f":"SUM(D47,D51,D56,D58)","v":0}]
[null,null,null,null,null,null,null,"4.7     Sonstige Verbindlichkeiten",{"$f":"Eingabeblatt!G596","v":0}]
[null,"2.1    Vorräte",null,{"$f":"Eingabeblatt!G411+Eingabeblatt!G414","v":0}]
[null,null,"2.1.1      Roh-, Hilfs- und Betriebsstoffe, Waren",{"$f":"Eingabeblatt!G411","v":0},null,null,null,"4.8     Erhaltene Anzahlungen",{"$f":"Eingabeblatt!G604","v":0}]
[null,null,"2.1.2     Geleistete Anzahlungen",{"$f":"Eingabeblatt!G414","v":0}]
[null,null,null,null,null,null,"5     Passive Rechnungsabgrenzung",null,{"$f":"Eingabeblatt!G609","v":0}]
[null,"2.2    Forderungen und sonstige Vermögensgegenstände",null,{"$f":"D52+D53+D54","v":0}]
[null,null,"2.2.1     Öffentlich-rechtliche Forderungen und Forderungen aus Transferleistungen",{"$f":"Eingabeblatt!G419","v":0}]
[null,null,"2.2.2     Privatrechtliche Forderungen",{"$f":"Eingabeblatt!G427","v":0}]
[null,null,"2.2.3    Sonstige Vermögensgegenstände",{"$f":"Eingabeblatt!G433","v":0}]
[]
[null,"2.3    Wertpapiere des Umlaufvermögens",null,{"$f":"Eingabeblatt!G407","v":0}]
[]
[null,"2.4    Liquide Mittel",null,{"$f":"Eingabeblatt!G438","v":0}]
[]
["3     Aktive Rechnungsabgrenzung",null,null,{"$f":"Eingabeblatt!G442","v":0}]
[]
["4     Nicht durch Eigenkapital gedeckter Fehlbetrag",null,null,{"$f":"Eingabeblatt!G449","v":0}]
[]
["Bilanzsumme",null,null,{"$f":"SUM(D62,D60,D45,D6,D4)","v":0},null,null,"Bilanzsumme",null,{"$f":"SUM(I50,I25,I19,I13,I6)","v":0}]
[]
[]
[null,null,"*) Ansatz nur soweit Haushaltsbelastungen nach dem NKF-CUIG aktiviert und noch nicht "]
[null,null,"vollständig ausgebucht bzw. abgeschrieben wurden"]

{"sheet":"Anlagenspiegel","index":2,"n_rows":42,"n_cols":13,"rows_kept":42,"cut":false,"hidden":false,"merged":[[2,12,3,12],[0,1,1,5],[0,6,1,10],[0,11,1,12],[5,1,5,12],[2,11,3,11],[0,0,5,0],[2,10,3,10],[2,1,3,1],[2,2,3,2],[2,3,3,3],[2,4,3,4],[2,5,3,5],[2,6,3,6],[2,7,3,7],[2,8,3,8],[2,9,3,9]]}
["Art des Anlagevermögens","Anschaffungs- und Herstellungskosten",null,null,null,null,"Abschreibungen und Zuschreibungen",null,null,null,null,"Buchwert"]
[]
[null,"Stand am\n 01.01.\ndes Haushaltsjahres\n","Zugänge\n im \nHaushaltsjahr\n","Abgänge\nim\nHaushaltsjahr\n","Umbuchungen\nim\nHaushaltsjahr\n","Stand am 31.12. \ndes Haushaltsjahres","Kumulierte Abschreibungen zum 31.12. des Vorjahres","Abschreibungen\nim\nHaushaltsjahr\n","Zuschreibungen\nim\nHaushaltsjahr\n","Änderungen durch Zu- und Abgänge sowie Umbuchungen im Haushaltsjahr","Kumulierte \nAbschreibungen zum 31.12. des Haushaltsjahres\n","am 31.12.\ndes Haushaltsjahres","am 31.12.\ndes\n Vorjahres"]
[]
[null,null,"+","-","+ / -",null,"-","-","+","+ / -","-"]
[null,"-  Euro  -"]
[]
["1. Immaterielle Vermögensgegenstände",{"$f":"Eingabeblatt!G17","v":0},{"$f":"Eingabeblatt!G18","v":0},{"$f":"Eingabeblatt!G19","v":0},{"$f":"Eingabeblatt!G20","v":0},{"$f":"Eingabeblatt!G21","v":0},{"$f":"Eingabeblatt!G22","v":0},{"$f":"Eingabeblatt!G23","v":0},{"$f":"Eingabeblatt!G24","v":0},{"$f":"Eingabeblatt!G25","v":0},{"$f":"Eingabeblatt!G26","v":0},{"$f":"Eingabeblatt!G27","v":0},{"$f":"Eingabeblatt!G28","v":0}]
["2. Sachanlagen",{"$f":"SUM(B10,B15,B20,B27:B31)","v":0},{"$f":"SUM(C10,C15,C20,C27:C31)","v":0},0,0,0,0,0,0,0,0,0,0]
[" 2.1   Unbebaute Grundstücke, gr. Rechte",{"$f":"SUM(B11:B14)","v":0},{"$f":"SUM(C11:C14)","v":0},{"$f":"SUM(D11:D14)","v":0},0,0,0,0,0,0,0,0,0]
["         2.1.1   Grünflächen",{"$f":"Eingabeblatt!G32","v":0},{"$f":"Eingabeblatt!G33","v":0},{"$f":"Eingabeblatt!G34","v":0},{"$f":"Eingabeblatt!G35","v":0},{"$f":"Eingabeblatt!G36","v":0},{"$f":"Eingabeblatt!G37","v":0},{"$f":"Eingabeblatt!G38","v":0},{"$f":"Eingabeblatt!G39","v":0},{"$f":"Eingabeblatt!G40","v":0},{"$f":"Eingabeblatt!G41","v":0},{"$f":"Eingabeblatt!G42","v":0},{"$f":"Eingabeblatt!G43","v":0}]
["         2.1.2   Ackerland",{"$f":"Eingabeblatt!G45","v":0},{"$f":"Eingabeblatt!G46","v":0},{"$f":"Eingabeblatt!G47","v":0},{"$f":"Eingabeblatt!G48","v":0},{"$f":"Eingabeblatt!G49","v":0},{"$f":"Eingabeblatt!G50","v":0},{"$f":"Eingabeblatt!G51","v":0},{"$f":"Eingabeblatt!G52","v":0},{"$f":"Eingabeblatt!G53","v":0},{"$f":"Eingabeblatt!G54","v":0},{"$f":"Eingabeblatt!G55","v":0},{"$f":"Eingabeblatt!G56","v":0}]
["         2.1.3   Wald, Forsten",{"$f":"Eingabeblatt!G58","v":0},{"$f":"Eingabeblatt!G59","v":0},{"$f":"Eingabeblatt!G60","v":0},{"$f":"Eingabeblatt!G61","v":0},{"$f":"Eingabeblatt!G62","v":0},{"$f":"Eingabeblatt!G63","v":0},{"$f":"Eingabeblatt!G64","v":0},{"$f":"Eingabeblatt!G65","v":0},{"$f":"Eingabeblatt!G66","v":0},{"$f":"Eingabeblatt!G67","v":0},{"$f":"Eingabeblatt!G68","v":0},{"$f":"Eingabeblatt!G69","v":0}]
["         2.1.4   Sonstige unbebaute Grundstücke",{"$f":"Eingabeblatt!G71","v":0},{"$f":"Eingabeblatt!G72","v":0},{"$f":"Eingabeblatt!G73","v":0},{"$f":"Eingabeblatt!G74","v":0},{"$f":"Eingabeblatt!G75","v":0},{"$f":"Eingabeblatt!G76","v":0},{"$f":"Eingabeblatt!G77","v":0},{"$f":"Eingabeblatt!G78","v":0},{"$f":"Eingabeblatt!G79","v":0},{"$f":"Eingabeblatt!G80","v":0},{"$f":"Eingabeblatt!G81","v":0},{"$f":"Eingabeblatt!G82","v":0}]
[" 2.2   Bebaute Grundstücke, gr. Rechte",{"$f":"SUM(B16:B19)","v":0},{"$f":"SUM(C16:C19)","v":0},0,0,0,0,0,0,0,0,0,0]
["         2.2.1   Kindertageseinrichtungen",{"$f":"Eingabeblatt!G86","v":0},{"$f":"Eingabeblatt!G87","v":0},{"$f":"Eingabeblatt!G88","v":0},{"$f":"Eingabeblatt!G89","v":0},{"$f":"Eingabeblatt!G90","v":0},{"$f":"Eingabeblatt!G91","v":0},{"$f":"Eingabeblatt!G92","v":0},{"$f":"Eingabeblatt!G93","v":0},{"$f":"Eingabeblatt!G94","v":0},{"$f":"Eingabeblatt!G95","v":0},{"$f":"Eingabeblatt!G96","v":0},{"$f":"Eingabeblatt!G97","v":0}]
["         2.2.2   Schulen",{"$f":"Eingabeblatt!G99","v":0},{"$f":"Eingabeblatt!G100","v":0},{"$f":"Eingabeblatt!G101","v":0},{"$f":"Eingabeblatt!G102","v":0},{"$f":"Eingabeblatt!G103","v":0},{"$f":"Eingabeblatt!G104","v":0},{"$f":"Eingabeblatt!G105","v":0},{"$f":"Eingabeblatt!G106","v":0},{"$f":"Eingabeblatt!G107","v":0},{"$f":"Eingabeblatt!G108","v":0},{"$f":"Eingabeblatt!G109","v":0},{"$f":"Eingabeblatt!G110","v":0}]
["         2.2.3   Wohnbauten",{"$f":"Eingabeblatt!G112","v":0},{"$f":"Eingabeblatt!G113","v":0},{"$f":"Eingabeblatt!G114","v":0},{"$f":"Eingabeblatt!G115","v":0},{"$f":"Eingabeblatt!G116","v":0},{"$f":"Eingabeblatt!G117","v":0},{"$f":"Eingabeblatt!G118","v":0},{"$f":"Eingabeblatt!G119","v":0},{"$f":"Eingabeblatt!G120","v":0},{"$f":"Eingabeblatt!G121","v":0},{"$f":"Eingabeblatt!G122","v":0},{"$f":"Eingabeblatt!G123","v":0}]
["         2.2.4   Sonstige Geschäftsgebäude",{"$f":"Eingabeblatt!G125","v":0},{"$f":"Eingabeblatt!G126","v":0},{"$f":"Eingabeblatt!G127","v":0},{"$f":"Eingabeblatt!G128","v":0},{"$f":"Eingabeblatt!G129","v":0},{"$f":"Eingabeblatt!G130","v":0},{"$f":"Eingabeblatt!G131","v":0},{"$f":"Eingabeblatt!G132","v":0},{"$f":"Eingabeblatt!G133","v":0},{"$f":"Eingabeblatt!G134","v":0},{"$f":"Eingabeblatt!G135","v":0},{"$f":"Eingabeblatt!G136","v":0}]
[" 2.3   Infrastrukturvermögen",{"$f":"SUM(B21:B26)","v":0},{"$f":"SUM(C21:C26)","v":0},0,0,0,0,0,0,0,0,0,0]
["         2.3.1   Grund und Boden der Infrastruktur",{"$f":"Eingabeblatt!G140","v":0},{"$f":"Eingabeblatt!G141","v":0},{"$f":"Eingabeblatt!G142","v":0},{"$f":"Eingabeblatt!G143","v":0},{"$f":"Eingabeblatt!G144","v":0},{"$f":"Eingabeblatt!G145","v":0},{"$f":"Eingabeblatt!G146","v":0},{"$f":"Eingabeblatt!G147","v":0},{"$f":"Eingabeblatt!G148","v":0},{"$f":"Eingabeblatt!G149","v":0},{"$f":"Eingabeblatt!G150","v":0},{"$f":"Eingabeblatt!G151","v":0}]
["         2.3.2   Brücken und Tunnel",{"$f":"Eingabeblatt!G153","v":0},{"$f":"Eingabeblatt!G154","v":0},{"$f":"Eingabeblatt!G155","v":0},{"$f":"Eingabeblatt!G156","v":0},{"$f":"Eingabeblatt!G157","v":0},{"$f":"Eingabeblatt!G158","v":0},{"$f":"Eingabeblatt!G159","v":0},{"$f":"Eingabeblatt!G160","v":0},{"$f":"Eingabeblatt!G161","v":0},{"$f":"Eingabeblatt!G162","v":0},{"$f":"Eingabeblatt!G163","v":0},{"$f":"Eingabeblatt!G164","v":0}]
["         2.3.3   Gleisanlagen u.a.",{"$f":"Eingabeblatt!G166","v":0},{"$f":"Eingabeblatt!G167","v":0},{"$f":"Eingabeblatt!G168","v":0},{"$f":"Eingabeblatt!G169","v":0},{"$f":"Eingabeblatt!G170","v":0},{"$f":"Eingabeblatt!G171","v":0},{"$f":"Eingabeblatt!G172","v":0},{"$f":"Eingabeblatt!G173","v":0},{"$f":"Eingabeblatt!G174","v":0},{"$f":"Eingabeblatt!G175","v":0},{"$f":"Eingabeblatt!G176","v":0},{"$f":"Eingabeblatt!G177","v":0}]
["         2.3.4   Abwasseranlagen",{"$f":"Eingabeblatt!G179","v":0},{"$f":"Eingabeblatt!G180","v":0},{"$f":"Eingabeblatt!G181","v":0},{"$f":"Eingabeblatt!G182","v":0},{"$f":"Eingabeblatt!G183","v":0},{"$f":"Eingabeblatt!G184","v":0},{"$f":"Eingabeblatt!G185","v":0},{"$f":"Eingabeblatt!G186","v":0},{"$f":"Eingabeblatt!G187","v":0},{"$f":"Eingabeblatt!G188","v":0},{"$f":"Eingabeblatt!G189","v":0},{"$f":"Eingabeblatt!G190","v":0}]
["         2.3.5   Straßennetz mit Anlagen",{"$f":"Eingabeblatt!G192","v":0},{"$f":"Eingabeblatt!G193","v":0},{"$f":"Eingabeblatt!G194","v":0},{"$f":"Eingabeblatt!G195","v":0},{"$f":"Eingabeblatt!G196","v":0},{"$f":"Eingabeblatt!G197","v":0},{"$f":"Eingabeblatt!G198","v":0},{"$f":"Eingabeblatt!G199","v":0},{"$f":"Eingabeblatt!G200","v":0},{"$f":"Eingabeblatt!G201","v":0},{"$f":"Eingabeblatt!G202","v":0},{"$f":"Eingabeblatt!G203","v":0}]
["         2.3.6   Sonstige Bauten der Infrastruktur",{"$f":"Eingabeblatt!G205","v":0},{"$f":"Eingabeblatt!G206","v":0},{"$f":"Eingabeblatt!G207","v":0},{"$f":"Eingabeblatt!G208","v":0},{"$f":"Eingabeblatt!G209","v":0},{"$f":"Eingabeblatt!G210","v":0},{"$f":"Eingabeblatt!G211","v":0},{"$f":"Eingabeblatt!G212","v":0},{"$f":"Eingabeblatt!G213","v":0},{"$f":"Eingabeblatt!G214","v":0},{"$f":"Eingabeblatt!G215","v":0},{"$f":"Eingabeblatt!G216","v":0}]
[" 2.4   Bauten auf fremdem Grund und Boden",{"$f":"Eingabeblatt!G220","v":0},{"$f":"Eingabeblatt!G221","v":0},{"$f":"Eingabeblatt!G222","v":0},{"$f":"Eingabeblatt!G223","v":0},{"$f":"Eingabeblatt!G224","v":0},{"$f":"Eingabeblatt!G225","v":0},{"$f":"Eingabeblatt!G226","v":0},{"$f":"Eingabeblatt!G227","v":0},{"$f":"Eingabeblatt!G228","v":0},{"$f":"Eingabeblatt!G229","v":0},{"$f":"Eingabeblatt!G230","v":0},{"$f":"Eingabeblatt!G231","v":0}]
[" 2.5   Kunstgegenstände, Kulturdenkmäler",{"$f":"Eingabeblatt!G235","v":0},{"$f":"Eingabeblatt!G236","v":0},{"$f":"Eingabeblatt!G237","v":0},{"$f":"Eingabeblatt!G238","v":0},{"$f":"Eingabeblatt!G239","v":0},{"$f":"Eingabeblatt!G240","v":0},{"$f":"Eingabeblatt!G241","v":0},{"$f":"Eingabeblatt!G242","v":0},{"$f":"Eingabeblatt!G243","v":0},{"$f":"Eingabeblatt!G244","v":0},{"$f":"Eingabeblatt!G245","v":0},{"$f":"Eingabeblatt!G246","v":0}]
[" 2.6   Maschinen, techn. Anlagen, Fahrzeuge",{"$f":"Eingabeblatt!G250","v":0},{"$f":"Eingabeblatt!G251","v":0},{"$f":"Eingabeblatt!G252","v":0},{"$f":"Eingabeblatt!G253","v":0},{"$f":"Eingabeblatt!G254","v":0},{"$f":"Eingabeblatt!G255","v":0},{"$f":"Eingabeblatt!G256","v":0},{"$f":"Eingabeblatt!G257","v":0},{"$f":"Eingabeblatt!G258","v":0},{"$f":"Eingabeblatt!G259","v":0},{"$f":"Eingabeblatt!G260","v":0},{"$f":"Eingabeblatt!G261","v":0}]
[" 2.7   Betriebs- und Geschäftsausstattung",{"$f":"Eingabeblatt!G265","v":0},{"$f":"Eingabeblatt!G266","v":0},{"$f":"Eingabeblatt!G267","v":0},{"$f":"Eingabeblatt!G268","v":0},{"$f":"Eingabeblatt!G269","v":0},{"$f":"Eingabeblatt!G270","v":0},{"$f":"Eingabeblatt!G271","v":0},{"$f":"Eingabeblatt!G272","v":0},{"$f":"Eingabeblatt!G273","v":0},{"$f":"Eingabeblatt!G274","v":0},{"$f":"Eingabeblatt!G275","v":0},{"$f":"Eingabeblatt!G276","v":0}]
[" 2.8   Geleistete Anzahlungen, Anlagen im Bau",{"$f":"Eingabeblatt!G280","v":0},{"$f":"Eingabeblatt!G281","v":0},{"$f":"Eingabeblatt!G282","v":0},{"$f":"Eingabeblatt!G283","v":0},{"$f":"Eingabeblatt!G284","v":0},{"$f":"Eingabeblatt!G285","v":0},{"$f":"Eingabeblatt!G286","v":0},{"$f":"Eingabeblatt!G287","v":0},{"$f":"Eingabeblatt!G288","v":0},{"$f":"Eingabeblatt!G289","v":0},{"$f":"Eingabeblatt!G290","v":0},{"$f":"Eingabeblatt!G291","v":0}]
["3. Finanzanlagen",{"$f":"SUM(B33:B37)","v":0},{"$f":"SUM(C33:C37)","v":0},0,0,0,0,0,0,0,0,0,0]
[" 3.1   Anteile an verbundenen Unternehmen",{"$f":"Eingabeblatt!G295","v":0},{"$f":"Eingabeblatt!G296","v":0},{"$f":"Eingabeblatt!G297","v":0},{"$f":"Eingabeblatt!G298","v":0},{"$f":"Eingabeblatt!G299","v":0},{"$f":"Eingabeblatt!G300","v":0},{"$f":"Eingabeblatt!G301","v":0},{"$f":"Eingabeblatt!G302","v":0},{"$f":"Eingabeblatt!G303","v":0},{"$f":"Eingabeblatt!G304","v":0},{"$f":"Eingabeblatt!G305","v":0},{"$f":"Eingabeblatt!G306","v":0}]
[" 3.2   Beteiligungen",{"$f":"Eingabeblatt!G310","v":0},{"$f":"Eingabeblatt!G311","v":0},{"$f":"Eingabeblatt!G312","v":0},{"$f":"Eingabeblatt!G313","v":0},{"$f":"Eingabeblatt!G314","v":0},{"$f":"Eingabeblatt!G315","v":0},{"$f":"Eingabeblatt!G316","v":0},{"$f":"Eingabeblatt!G317","v":0},{"$f":"Eingabeblatt!G318","v":0},{"$f":"Eingabeblatt!G319","v":0},{"$f":"Eingabeblatt!G320","v":0},{"$f":"Eingabeblatt!G321","v":0}]
[" 3.3   Sondervermögen",{"$f":"Eingabeblatt!G325","v":0},{"$f":"Eingabeblatt!G326","v":0},{"$f":"Eingabeblatt!G327","v":0},{"$f":"Eingabeblatt!G328","v":0},{"$f":"Eingabeblatt!G329","v":0},{"$f":"Eingabeblatt!G330","v":0},{"$f":"Eingabeblatt!G331","v":0},{"$f":"Eingabeblatt!G332","v":0},{"$f":"Eingabeblatt!G333","v":0},{"$f":"Eingabeblatt!G334","v":0},{"$f":"Eingabeblatt!G335","v":0},{"$f":"Eingabeblatt!G336","v":0}]
[" 3.4   Wertpapiere des Anlagevermögens",{"$f":"Eingabeblatt!G394","v":0},{"$f":"Eingabeblatt!G395","v":0},{"$f":"Eingabeblatt!G396","v":0},{"$f":"Eingabeblatt!G397","v":0},{"$f":"Eingabeblatt!G398","v":0},{"$f":"Eingabeblatt!G399","v":0},{"$f":"Eingabeblatt!G400","v":0},{"$f":"Eingabeblatt!G401","v":0},{"$f":"Eingabeblatt!G402","v":0},{"$f":"Eingabeblatt!G403","v":0},{"$f":"Eingabeblatt!G404","v":0},{"$f":"Eingabeblatt!G405","v":0}]
[" 3.5   Ausleihungen ",{"$f":"SUM(B38:B41)","v":0},{"$f":"SUM(C38:C41)","v":0},0,0,0,0,0,0,0,0,0,0]
["         3.5.1   an verbundene Unternehmen",{"$f":"Eingabeblatt!G340","v":0},{"$f":"Eingabeblatt!G341","v":0},{"$f":"Eingabeblatt!G342","v":0},{"$f":"Eingabeblatt!G343","v":0},{"$f":"Eingabeblatt!G344","v":0},{"$f":"Eingabeblatt!G345","v":0},{"$f":"Eingabeblatt!G346","v":0},{"$f":"Eingabeblatt!G347","v":0},{"$f":"Eingabeblatt!G348","v":0},{"$f":"Eingabeblatt!G349","v":0},{"$f":"Eingabeblatt!G350","v":0},{"$f":"Eingabeblatt!G351","v":0}]
["         3.5.2   an Beteiligungen",{"$f":"Eingabeblatt!G353","v":0},{"$f":"Eingabeblatt!G354","v":0},{"$f":"Eingabeblatt!G355","v":0},{"$f":"Eingabeblatt!G356","v":0},{"$f":"Eingabeblatt!G357","v":0},{"$f":"Eingabeblatt!G358","v":0},{"$f":"Eingabeblatt!G359","v":0},{"$f":"Eingabeblatt!G360","v":0},{"$f":"Eingabeblatt!G361","v":0},{"$f":"Eingabeblatt!G362","v":0},{"$f":"Eingabeblatt!G363","v":0},{"$f":"Eingabeblatt!G364","v":0}]
["         3.5.3   an Sondervermögen",{"$f":"Eingabeblatt!G366","v":0},{"$f":"Eingabeblatt!G367","v":0},{"$f":"Eingabeblatt!G368","v":0},{"$f":"Eingabeblatt!G369","v":0},{"$f":"Eingabeblatt!G370","v":0},{"$f":"Eingabeblatt!G371","v":0},{"$f":"Eingabeblatt!G372","v":0},{"$f":"Eingabeblatt!G373","v":0},{"$f":"Eingabeblatt!G374","v":0},{"$f":"Eingabeblatt!G375","v":0},{"$f":"Eingabeblatt!G376","v":0},{"$f":"Eingabeblatt!G377","v":0}]
["         3.5.4   Sonstige Ausleihungen",{"$f":"Eingabeblatt!G379","v":0},{"$f":"Eingabeblatt!G380","v":0},{"$f":"Eingabeblatt!G381","v":0},{"$f":"Eingabeblatt!G382","v":0},{"$f":"Eingabeblatt!G383","v":0},{"$f":"Eingabeblatt!G384","v":0},{"$f":"Eingabeblatt!G385","v":0},{"$f":"Eingabeblatt!G386","v":0},{"$f":"Eingabeblatt!G387","v":0},{"$f":"Eingabeblatt!G388","v":0},{"$f":"Eingabeblatt!G389","v":0},{"$f":"Eingabeblatt!G390","v":0}]
["4. Summe des Anlagevermögens",{"$f":"B8+B9+B32","v":0},{"$f":"C8+C9+C32","v":0},0,0,0,0,0,0,0,0,0,0]

{"sheet":"Forderungsspiegel","index":3,"n_rows":8,"n_cols":6,"rows_kept":8,"cut":false,"hidden":false,"merged":[[1,0,3,0],[1,1,2,1],[1,2,1,4],[1,5,2,5],[3,1,3,5]]}
[]
["Art der Forderungen ","Gesamtbetrag \nam 31.12.\ndes \nHaushaltsjahres","Forderungen mit einer Restlaufzeit von",null,null,"Gesamtbetrag\nam 31.12.\n des\n Vorjahres"]
[null,null,"bis zu 1 Jahr","1 bis 5 Jahre","mehr als 5 Jahre"]
[null,"- Euro -"]
["Öffentlich-rechtliche Forderungen und \nForderungen aus Transferleistungen ",{"$f":"Eingabeblatt!G419","v":0},{"$f":"Eingabeblatt!G420","v":0},{"$f":"Eingabeblatt!G421","v":0},{"$f":"Eingabeblatt!G422","v":0},{"$f":"Eingabeblatt!G423","v":0}]
["Privatrechtliche Forderungen ",{"$f":"Eingabeblatt!G427","v":0},{"$f":"Eingabeblatt!G428","v":0},{"$f":"Eingabeblatt!G429","v":0},{"$f":"Eingabeblatt!G430","v":0},{"$f":"Eingabeblatt!G431","v":0}]
["Summe der Forderungen ",{"$f":"SUM(B5:B6)","v":0},{"$f":"SUM(C5:C6)","v":0},{"$f":"SUM(D5:D6)","v":0},{"$f":"SUM(E5:E6)","v":0},{"$f":"SUM(F5:F6)","v":0}]
["Sonstige Vermögensgegenstände",{"$f":"Eingabeblatt!G433","v":0},null,null,null,{"$f":"Eingabeblatt!G434","v":0}]

{"sheet":"Verbindlichkeitenspiegel","index":4,"n_rows":21,"n_cols":6,"rows_kept":21,"cut":false,"hidden":false,"merged":[[1,0,3,0],[1,1,2,1],[1,2,1,4],[1,5,2,5],[3,1,3,5]]}
[]
["Art der Verbindlichkeiten","Gesamtbetrag am \n31.12. des \nHaushaltsjahres","Verbindlichkeiten mit einer Restlaufzeit von",null,null,"Gesamtbetrag am\n31.12. des\n Vorjahres"]
[null,null,"bis zu 1 Jahr","1 bis 5 Jahre","mehr als 5 Jahre"]
[null,"- Euro -"]
[]
["1. Anleihen",{"$f":"SUM(B7:B8)","v":0},{"$f":"SUM(C7:C8)","v":0},0,0,0]
["     1.1 für Investitionen",{"$f":"Eingabeblatt!G518","v":0},{"$f":"Eingabeblatt!G519","v":0},{"$f":"Eingabeblatt!G520","v":0},{"$f":"Eingabeblatt!G521","v":0},{"$f":"Eingabeblatt!G522","v":0}]
["     1.2 zur Liquiditätssicherung",{"$f":"Eingabeblatt!G524","v":0},{"$f":"Eingabeblatt!G525","v":0},{"$f":"Eingabeblatt!G526","v":0},{"$f":"Eingabeblatt!G527","v":0},{"$f":"Eingabeblatt!G528","v":0}]
["2. Verbindlichkeiten aus Krediten \n     für Investitionen",{"$f":"B10+B11+B12+B13+B14","v":0},{"$f":"C10+C11+C12+C13+C14","v":0},{"$f":"D10+D11+D12+D13+D14","v":0},{"$f":"E10+E11+E12+E13+E14","v":0},{"$f":"F10+F11+F12+F13+F14","v":0}]
["     2.1 von verbundenen Unternehmen",{"$f":"Eingabeblatt!G532","v":0},{"$f":"Eingabeblatt!G533","v":0},{"$f":"Eingabeblatt!G534","v":0},{"$f":"Eingabeblatt!G535","v":0},{"$f":"Eingabeblatt!G536","v":0}]
["     2.2 von Beteiligungen",{"$f":"Eingabeblatt!G538","v":0},{"$f":"Eingabeblatt!G539","v":0},{"$f":"Eingabeblatt!G540","v":0},{"$f":"Eingabeblatt!G541","v":0},{"$f":"Eingabeblatt!G542","v":0}]
["     2.3 von Sondervermögen",{"$f":"Eingabeblatt!G544","v":0},{"$f":"Eingabeblatt!G545","v":0},{"$f":"Eingabeblatt!G546","v":0},{"$f":"Eingabeblatt!G547","v":0},{"$f":"Eingabeblatt!G548","v":0}]
["     2.4 vom öffentlichen Bereich",{"$f":"Eingabeblatt!G550","v":0},{"$f":"Eingabeblatt!G551","v":0},{"$f":"Eingabeblatt!G552","v":0},{"$f":"Eingabeblatt!G553","v":0},{"$f":"Eingabeblatt!G554","v":0}]
["     2.5 von Kreditinstituten",{"$f":"Eingabeblatt!G556","v":0},{"$f":"Eingabeblatt!G557","v":0},{"$f":"Eingabeblatt!G558","v":0},{"$f":"Eingabeblatt!G559","v":0},{"$f":"Eingabeblatt!G560","v":0}]
["3. Verbindlichkeiten aus Krediten zur\n     Liquiditätssicherung  ",{"$f":"Eingabeblatt!G564","v":0},{"$f":"Eingabeblatt!G565","v":0},{"$f":"Eingabeblatt!G566","v":0},{"$f":"Eingabeblatt!G567","v":0},{"$f":"Eingabeblatt!G568","v":0}]
["4. Verbindlichkeiten aus Vorgängen, die Kredit-\n     aufnahmen wirtschaftlich gleichkommen ",{"$f":"Eingabeblatt!G572","v":0},{"$f":"Eingabeblatt!G573","v":0},{"$f":"Eingabeblatt!G574","v":0},{"$f":"Eingabeblatt!G575","v":0},{"$f":"Eingabeblatt!G576","v":0}]
["5. Verbindlichkeiten aus Lieferungen und Leistungen",{"$f":"Eingabeblatt!G580","v":0},{"$f":"Eingabeblatt!G581","v":0},{"$f":"Eingabeblatt!G582","v":0},{"$f":"Eingabeblatt!G583","v":0},{"$f":"Eingabeblatt!G584","v":0}]
["6. Verbindlichkeiten aus Transferleistungen",{"$f":"Eingabeblatt!G588","v":0},{"$f":"Eingabeblatt!G589","v":0},{"$f":"Eingabeblatt!G590","v":0},{"$f":"Eingabeblatt!G591","v":0},{"$f":"Eingabeblatt!G592","v":0}]
["7. Sonstige Verbindlichkeiten",{"$f":"Eingabeblatt!G596","v":0},{"$f":"Eingabeblatt!G597","v":0},{"$f":"Eingabeblatt!G598","v":0},{"$f":"Eingabeblatt!G599","v":0},{"$f":"Eingabeblatt!G600","v":0}]
["8. Erhaltene Anzahlungen",{"$f":"Eingabeblatt!G604","v":0},{"$f":"Eingabeblatt!G604","v":0},null,null,{"$f":"Eingabeblatt!G605","v":0}]
["9. Summe aller Verbindlichkeiten",{"$f":"B6+B9+B15+B16+B17+B18+B19+B20","v":0},{"$f":"C6+C9+C15+C16+C17+C18+C19+C20","v":0},{"$f":"D6+D9+D15+D16+D17+D18+D19+D20","v":0},{"$f":"E6+E9+E15+E16+E17+E18+E19+E20","v":0},{"$f":"F6+F9+F15+F16+F17+F18+F19+F20","v":0}]

{"sheet":"Eigenkapitalspiegel","index":5,"n_rows":16,"n_cols":9,"rows_kept":16,"cut":false,"hidden":false,"merged":[[8,1,8,2],[2,3,2,8],[1,1,2,2]]}
[]
[null,"Bezeichnung",null,"Bestand zum 31.12. des Vorjahres","Verrechnung bilanzieller Verlustvorträge mit Jahresüberschüssen oder der allgemeinen Rücklage nach § 95 Abs. 2 Satz 3 GO NRW","Verwendung des Vorjahresergebnisses zum 01.01. des Haushaltsjahres 3","Verrechnungen mit der allgemeinen Rücklage nach § 44 Abs. 3 KomHVO im \nHaushaltsjahr 4","Veränderungen der Sonderrücklage","Bestand zum 31.12. des Haushaltsjahres 5"]
[null,null,null,"- Euro -"]
[null,"1.1","Allgemeine Rücklage",{"$f":"Eingabeblatt!G455","v":0},{"$f":"Eingabeblatt!G456","v":0},{"$f":"Eingabeblatt!G457","v":0},{"$f":"Eingabeblatt!G458","v":0},{"$f":"Eingabeblatt!G459","v":0},{"$f":"Eingabeblatt!G460","v":0}]
[null,"1.2","Sonderrücklagen",{"$f":"Eingabeblatt!G462","v":0},null,null,null,{"$f":"Eingabeblatt!G466","v":0},{"$f":"Eingabeblatt!G467","v":0}]
[null,"1.3","Ausgleichsrücklage",{"$f":"Eingabeblatt!G469","v":0},null,{"$f":"Eingabeblatt!G471","v":0},null,null,{"$f":"Eingabeblatt!G474","v":0}]
[null,"1.4","Bilanzieller Verlustvortrag 1",{"$f":"Eingabeblatt!G476","v":0},{"$f":"Eingabeblatt!G477","v":0},{"$f":"Eingabeblatt!G478","v":0},null,null,{"$f":"Eingabeblatt!G481","v":0}]
[null,"1.5","Jahresüberschuss/-fehlbetrag 2",{"$f":"Eingabeblatt!G483","v":0},{"$f":"Eingabeblatt!G484","v":0},{"$f":"Eingabeblatt!G485","v":0},null,null,{"$f":"Eingabeblatt!G488","v":0}]
[null,"Summe Eigenkapital",null,{"$f":"D4+D5+D6+D7+D8","v":0},null,null,null,null,{"$f":"I4+I5+I6+I7+I8","v":0}]
[null,"4.","Nicht durch Eigenkapital gedeckter Fehlbetrag",{"$f":"Eingabeblatt!G444","v":0},{"$f":"Eingabeblatt!G445","v":0},{"$f":"Eingabeblatt!G446","v":0},{"$f":"Eingabeblatt!G447","v":0},{"$f":"Eingabeblatt!G448","v":0},{"$f":"Eingabeblatt!G449","v":0}]
[]
[null,null,"1) Ausweis des bilanziellen Verlustvortrages mit negativem Vorzeichen"]
[null,null,"2) Ausweis eines Jahresfehlbetrages mit negativem Vorzeichen"]
[null,null,"3) Ggf. Bildung eines neuen bilanziellern erlustvortrages; Ausweis der Umbuchung aus der Ausgleichsrücklage un die allgemeine Rücklage nach § 75 Abs. 3 Satz 3 GO NRW"]
[null,null,"4) Ggf. zzgl. der einmalig zulässigen Verrechnung der Bilanzierungshilfe mit der allgemeinen Rücklage nach § 6 Abs. 2 NKF-CUIG"]
[null,null,"5) Vor Beschluss über die Ergebnisverwendung"]

{"sheet":"Tabelle1","index":6,"n_rows":109,"n_cols":9,"rows_kept":109,"cut":false,"hidden":true,"merged":[]}
["Düsseldorf","Köln","Münster","Detmold","Arnsberg","Verbände",null,null,"Bilanzjahr"]
["-- bitte auswählen --","-- bitte auswählen --","-- bitte auswählen --","-- bitte auswählen --","-- bitte auswählen --","-- bitte auswählen --",null,null,"-- bitte auswählen --"]
["170004  Alpen                         ","334001  Aachen, Städteregion                 ","554004  Ahaus, Stadt                  ","774004  Altenbeken                    ","962004  Altena, Stadt                 ","200000 LV Rheinland",null,null,"2024"]
["154004  Bedburg-Hau                   ","334002  Aachen, krfr. Stadt           ","570004  Ahlen, Stadt                  ","766004  Augustdorf                    ","974004  Anröchte                      ","600000 LV Westfalen-Lippe",null,null,"2025"]
["166004  Brüggen                       ","358004  Aldenhoven                    ","566004  Altenberge                    ","762004  Bad Driburg, Stadt            ","958004  Arnsberg, Stadt               ","800000 RVR",null,null,"2026"]
["170008  Dinslaken, Stadt              ","382004  Alfter                        ","558004  Ascheberg                     ","774008  Bad Lippspringe, Stadt        ","966004  Attendorn, Stadt              ",null,null,null,"2027"]
["162004  Dormagen, Stadt               ","334004  Alsdorf, Stadt                ","570008  Beckum, Stadt                 ","770004  Bad Oeynhausen, Stadt         ","970004  Bad Berleburg, Stadt          ",null,null,null,"2028"]
["112000  Duisburg, krfr. Stadt         ","382008  Bad Honnef, Stadt             ","570012  Beelen                        ","766008  Bad Salzuflen, Stadt          ","970028  Bad Laasphe, Stadt            "]
["111000  Düsseldorf, krfr. Stadt       ","366004  Bad Münstereifel, Stadt       ","558008  Billerbeck, Stadt             ","774040  Bad Wünnenberg, Stadt         ","974008  Bad Sassendorf                "]
["154008  Emmerich am Rhein, Stadt      ","334008  Baesweiler, Stadt             ","554008  Bocholt, Stadt                ","766012  Barntrup, Stadt               ","962008  Balve, Stadt                  "]
["158004  Erkrath, Stadt                ","362004  Bedburg, Stadt                ","554001  Borken, Kreis                 ","762008  Beverungen, Stadt             ","978004  Bergkamen, Stadt              "]
["113000  Essen, krfr. Stadt            ","362008  Bergheim, Stadt               ","554012  Borken, Stadt                 ","711000  Bielefeld, krfr. Stadt        ","958008  Bestwig                       "]
["154012  Geldern, Stadt                ","378004  Bergisch Gladbach, Stadt      ","512000  Bottrop, krfr. Stadt          ","766016  Blomberg, Stadt               ","911000  Bochum, krfr. Stadt           "]
["154016  Goch, Stadt                   ","374004  Bergneustadt, Stadt           ","562004  Castrop-Rauxel, Stadt         ","774012  Borchen                       ","978008  Bönen                         "]
["166008  Grefrath                      ","366008  Blankenheim                   ","558001  Coesfeld, Kreis               ","762012  Borgentreich, Stadt           ","954004  Breckerfeld, Stadt            "]
["162008  Grevenbroich, Stadt           ","314000  Bonn, krfr. Stadt             ","558012  Coesfeld, Stadt               ","754004  Borgholzhausen, Stadt         ","958012  Brilon, Stadt                 "]
["158008  Haan, Stadt                   ","382012  Bornheim, Stadt               ","562008  Datteln, Stadt                ","762016  Brakel, Stadt                 ","970008  Burbach                       "]
["170012  Hamminkeln, Stadt             ","362012  Brühl, Stadt                  ","562012  Dorsten, Stadt                ","758004  Bünde, Stadt                  ","913000  Dortmund, krfr. Stadt         "]
["158012  Heiligenhaus, Stadt           ","378008  Burscheid, Stadt              ","570016  Drensteinfurt, Stadt          ","774016  Büren, Stadt                  ","966008  Drolshagen, Stadt             "]
["158016  Hilden, Stadt                 ","366012  Dahlem                        ","558016  Dülmen, Stadt                 ","774020  Delbrück, Stadt               ","954008  Ennepetal, Stadt              "]
["170016  Hünxe                         ","358001  Düren, Kreis                  ","566008  Emsdetten, Stadt              ","766020  Detmold, Stadt                ","954001  Ennepe-Ruhr-Kreis             "]
["154020  Issum                         ","358008  Düren, Stadt                  ","570020  Ennigerloh, Stadt             ","766024  Dörentrup                     ","974012  Ense                          "]
["162012  Jüchen                        ","382016  Eitorf                        ","570024  Everswinkel                   ","758008  Enger, Stadt                  ","970012  Erndtebrück                   "]
["162016  Kaarst, Stadt                 ","362016  Elsdorf                       ","513000  Gelsenkirchen, krfr. Stadt    ","770008  Espelkamp, Stadt              ","974016  Erwitte, Stadt                "]
["154024  Kalkar, Stadt                 ","374008  Engelskirchen                 ","554016  Gescher, Stadt                ","766028  Extertal                      ","958016  Eslohe (Sauerland)            "]
["170020  Kamp-Lintfort, Stadt          ","362020  Erftstadt, Stadt              ","562014  Gladbeck, Stadt               ","754001  Gütersloh, Kreis              ","966012  Finnentrop                    "]
["166012  Kempen, Stadt                 ","370004  Erkelenz, Stadt               ","566012  Greven, Stadt                 ","754008  Gütersloh, Stadt              ","970016  Freudenberg, Stadt            "]
["154028  Kerken                        ","334012  Eschweiler, Stadt             ","554020  Gronau (Westf.), Stadt        ","754012  Halle (Westf.), Stadt         ","978012  Fröndenberg/Ruhr, Stadt            "]
["154032  Kevelaer, Stadt               ","366001  Euskirchen, Kreis             ","562016  Haltern, Stadt                ","754016  Harsewinkel, Stadt            ","974020  Geseke, Stadt                 "]
["154001  Kleve, Kreis                  ","366016  Euskirchen, Stadt             ","558020  Havixbeck                     ","758001  Herford, Kreis                ","954012  Gevelsberg, Stadt             "]
["154036  Kleve, Stadt                  ","362024  Frechen, Stadt                ","554024  Heek                          ","758012  Herford, Stadt                ","914000  Hagen, krfr. Stadt            "]
["162020  Korschenbroich, Stadt         ","370008  Gangelt                       ","554028  Heiden                        ","754020  Herzebrock-Clarholz           ","958020  Hallenberg, Stadt             "]
["154040  Kranenburg                    ","370012  Geilenkirchen, Stadt          ","562020  Herten, Stadt                 ","758016  Hiddenhausen                  ","962012  Halver, Stadt                 "]
["114000  Krefeld, krfr. Stadt          ","374012  Gummersbach, Stadt            ","566020  Hopsten                       ","770012  Hille                         ","915000  Hamm, krfr. Stadt             "]
["158020  Langenfeld (Rhld.), Stadt     ","358012  Heimbach, Stadt               ","566016  Hörstel, Stadt                ","766032  Horn-Bad Meinberg, Stadt      ","954016  Hattingen, Stadt              "]
["162022  Meerbusch, Stadt              ","370001  Heinsberg, Kreis              ","566024  Horstmar, Stadt               ","774024  Hövelhof                      ","962016  Hemer, Stadt                  "]
["158001  Mettmann, Kreis               ","370016  Heinsberg, Stadt              ","566028  Ibbenbüren, Stadt             ","762001  Höxter, Kreis                 ","954020  Herdecke, Stadt               "]
["158024  Mettmann, Stadt               ","366020  Hellenthal                    ","554032  Isselburg, Stadt              ","762020  Höxter, Stadt                 ","916000  Herne, krfr. Stadt            "]
["170024  Moers, Stadt                  ","382020  Hennef (Sieg), Stadt          ","566032  Ladbergen                     ","770016  Hüllhorst                     ","962020  Herscheid                     "]
["116000  Mönchengladbach, krfr. Stadt  ","334016  Herzogenrath, Stadt           ","566036  Laer                          ","766036  Kalletal                      ","970020  Hilchenbach, Stadt            "]
["158026  Monheim am Rhein, Stadt       ","370020  Hückelhoven, Stadt            ","554036  Legden                        ","758020  Kirchlengern                  ","958001  Hochsauerlandkreis            "]
["117000  Mülheim an der Ruhr, krfr. St.","374016  Hückeswagen, Stadt            ","566040  Lengerich, Stadt              ","766040  Lage, Stadt                   ","978016  Holzwickede                   "]
["166016  Nettetal, Stadt               ","358016  Hürtgenwald                   ","566044  Lienen                        ","754024  Langenberg                    ","962024  Iserlohn, Stadt               "]
["170028  Neukirchen-Vluyn, Stadt       ","362028  Hürth, Stadt                  ","566048  Lotte                         ","766044  Lemgo, Stadt                  ","978020  Kamen, Stadt                  "]
["162024  Neuss, Stadt                  ","358020  Inden                         ","558024  Lüdinghausen, Stadt           ","766048  Leopoldshöhe                  ","962028  Kierspe, Stadt                "]
["166020  Niederkrüchten                ","358024  Jülich, Stadt                 ","562024  Marl, Stadt                   ","774028  Lichtenau, Stadt              ","966016  Kirchhundem                   "]
["119000  Oberhausen, krfr. Stadt       ","366024  Kall                          ","566052  Metelen                       ","766001  Lippe, Kreis                  ","970024  Kreuztal, Stadt               "]
["158028  Ratingen, Stadt               ","362032  Kerpen, Stadt                 ","566056  Mettingen                     ","758024  Löhne, Stadt                  ","966020  Lennestadt, Stadt             "]
["154044  Rees, Stadt                   ","315000  Köln, krfr. Stadt             ","515000  Münster, krfr. Stadt          ","770020  Lübbecke, Stadt               ","974024  Lippetal                      "]
["120000  Remscheid, krfr. Stadt        ","382024  Königswinter, Stadt           ","566060  Neuenkirchen                  ","766052  Lügde, Stadt                  ","974028  Lippstadt, Stadt              "]
["170032  Rheinberg, Stadt              ","358028  Kreuzau                       ","558028  Nordkirchen                   ","762024  Marienmünster, Stadt          ","962032  Lüdenscheid, Stadt            "]
["162001  Rhein-Kreis Neuss             ","378012  Kürten                        ","566064  Nordwalde                     ","770024  Minden, Stadt                 ","978024  Lünen, Stadt                  "]
["154048  Rheurdt                       ","358032  Langerwehe                    ","558032  Nottuln                       ","770001  Minden-Lübbecke, Kreis        ","958024  Marsberg, Stadt               "]
["162028  Rommerskirchen                ","378016  Leichlingen (Rhld.), Stadt    ","566068  Ochtrup, Stadt                ","762028  Nieheim, Stadt                ","962001  Märkischer Kreis              "]
["170036  Schermbeck                    ","316000  Leverkusen, krfr. Stadt       ","570028  Oelde, Stadt                  ","766056  Oerlinghausen, Stadt          ","958028  Medebach, Stadt               "]
["166024  Schwalmtal                    ","374020  Lindlar                       ","562028  Oer-Erkenschwick, Stadt       ","774001  Paderborn, Kreis              ","962036  Meinerzhagen, Stadt           "]
["122000  Solingen, krfr. Stadt         ","358036  Linnich, Stadt                ","558036  Olfen, Stadt                  ","774032  Paderborn, Stadt              ","962040  Menden (Sauerland), Stadt     "]
["170040  Sonsbeck                      ","382028  Lohmar, Stadt                 ","570032  Ostbevern                     ","770028  Petershagen, Stadt            ","958032  Meschede, Stadt               "]
["154052  Straelen, Stadt               ","374024  Marienheide                   ","554040  Raesfeld                      ","770032  Porta Westfalica, Stadt       ","974032  Möhnesee                      "]
["166028  Tönisvorst, Stadt             ","366028  Mechernich, Stadt             ","566072  Recke                         ","770036  Preußisch Oldendorf, Stadt    ","962044  Nachrodt-Wiblingwerde         "]
["154056  Uedem                         ","382032  Meckenheim, Stadt             ","562001  Recklinghausen, Kreis         ","770040  Rahden, Stadt                 ","970032  Netphen, Stadt                "]
["158032  Velbert, Stadt                ","358040  Merzenich                     ","562032  Recklinghausen, Stadt         ","754028  Rheda-Wiedenbrück, Stadt      ","962048  Neuenrade, Stadt              "]
["166001  Viersen, Kreis                ","334020  Monschau, Stadt               ","554044  Reken                         ","754032  Rietberg, Stadt               ","970036  Neunkirchen                   "]
["166032  Viersen, Stadt                ","374028  Morsbach                      ","554048  Rhede, Stadt                  ","758028  Rödinghausen                  ","966001  Olpe, Kreis                   "]
["170044  Voerde (Niederrhein), Stadt   ","382036  Much                          ","566076  Rheine, Stadt                 ","774036  Salzkotten, Stadt             ","966024  Olpe, Stadt                   "]
["154060  Wachtendonk                   ","366032  Nettersheim                   ","558040  Rosendahl                     ","766060  Schieder-Schwalenberg, Stadt  ","958036  Olsberg, Stadt                "]
["154064  Weeze                         ","382040  Neunkirchen-Seelscheid        ","566080  Saerbeck                      ","766064  Schlangen                     ","962052  Plettenberg, Stadt            "]
["170001  Wesel, Kreis                  ","358044  Nideggen, Stadt               ","570036  Sassenberg, Stadt             ","754036  Schloß Holte-Stukenbrock , Stadt     ","974036  Rüthen, Stadt                 "]
["170048  Wesel, Stadt                  ","382044  Niederkassel, Stadt           ","554052  Schöppingen                   ","758032  Spenge, Stadt                 ","962056  Schalksmühle                  "]
["166036  Willich, Stadt                ","358048  Niederzier                    ","558044  Senden                        ","754040  Steinhagen                    ","958040  Schmallenberg, Stadt          "]
["158036  Wülfrath, Stadt               ","358052  Nörvenich                     ","570040  Sendenhorst, Stadt            ","762032  Steinheim, Stadt              ","954024  Schwelm, Stadt                "]
["124000  Wuppertal, krfr. Stadt        ","374032  Nümbrecht                     ","554056  Stadtlohn, Stadt              ","770044  Stemwede                      ","978028  Schwerte, Stadt               "]
["170052  Xanten, Stadt                 ","374001  Oberbergischer Kreis          ","566001  Steinfurt, Kreis              ","754044  Verl                          ","978032  Selm, Stadt                   "]
[null,"378020  Odenthal                      ","566084  Steinfurt, Stadt              ","754048  Versmold, Stadt               ","970040  Siegen, Stadt                 "]
[null,"378024  Overath, Stadt                ","554060  Südlohn                       ","758036  Vlotho, Stadt                 ","970001  Siegen-Wittgenstein, Kreis    "]
[null,"362036  Pulheim, Stadt                ","566088  Tecklenburg, Stadt            ","762036  Warburg, Stadt                ","974001  Soest, Kreis                  "]
[null,"374036  Radevormwald, Stadt           ","570044  Telgte, Stadt                 ","754052  Werther (Westf.), Stadt       ","974040  Soest, Stadt                  "]
[null,"374040  Reichshof                     ","554064  Velen                         ","762040  Willebadessen, Stadt          ","954028  Sprockhövel, Stadt            "]
[null,"382048  Rheinbach, Stadt              ","554068  Vreden, Stadt                 ",null,"958044  Sundern (Sauerland), Stadt    "]
[null,"362001  Rhein-Erft-Kreis              ","570048  Wadersloh                     ",null,"978001  Unna, Kreis                   "]
[null,"382001  Rhein-Sieg-Kreis              ","562036  Waltrop, Stadt                ",null,"978036  Unna, Stadt                   "]
[null,"378001  Rheinisch-Bergischer Kreis    ","570001  Warendorf, Kreis              ",null,"974044  Warstein, Stadt               "]
[null,"334024  Roetgen                       ","570052  Warendorf, Stadt              ",null,"974048  Welver                        "]
[null,"378028  Rösrath, Stadt                ","566092  Westerkappeln                 ",null,"966028  Wenden                        "]
[null,"382052  Ruppichteroth                 ","566096  Wettringen                    ",null,"962060  Werdohl, Stadt                "]
[null,"382056  Sankt Augustin, Stadt         ",null,null,"974052  Werl, Stadt                   "]
[null,"366036  Schleiden, Stadt              ",null,null,"978040  Werne, Stadt                  "]
[null,"370024  Selfkant                      ",null,null,"954032  Wetter (Ruhr), Stadt          "]
[null,"382060  Siegburg, Stadt               ",null,null,"974056  Wickede (Ruhr)                "]
[null,"334028  Simmerath                     ",null,null,"970044  Wilnsdorf                     "]
[null,"334032  Stolberg (Rhld.), Stadt       ",null,null,"958048  Winterberg, Stadt             "]
[null,"382064  Swisttal                      ",null,null,"954036  Witten, Stadt                 "]
[null,"358056  Titz                          "]
[null,"382068  Troisdorf, Stadt              "]
[null,"370028  Übach-Palenberg, Stadt        "]
[null,"358060  Vettweiß                      "]
[null,"382072  Wachtberg                     "]
[null,"374044  Waldbröl, Stadt               "]
[null,"370032  Waldfeucht                    "]
[null,"370036  Wassenberg, Stadt             "]
[null,"370040  Wegberg, Stadt                "]
[null,"366040  Weilerswist                   "]
[null,"378032  Wermelskirchen, Stadt         "]
[null,"362040  Wesseling, Stadt              "]
[null,"374048  Wiehl, Stadt                  "]
[null,"382076  Windeck                       "]
[null,"374052  Wipperfürth, Stadt            "]
[null,"334036  Würselen, Stadt               "]
[null,"366044  Zülpich, Stadt                "]

{"sheet":"Datensatz","index":7,"n_rows":465,"n_cols":8,"rows_kept":465,"cut":false,"hidden":false,"merged":[]}
[{"$f":"Eingabeblatt!F4","v":"-- bitte auswählen --"},{"$f":"LEFT(Eingabeblatt!F3,6)","v":"-- bit"},"00001",{"$f":"Eingabeblatt!G12","v":0},{"$f":"ROUND(D1/1,0)","v":0},{"$f":"RIGHT(A1,2)","v":"--"},";",{"$f":"F1&G1&B1&G1&C1&G1&G1&E1","v":"--;-- bit;00001;;0"}]
[{"$f":"A1","v":"-- bitte auswählen --"},{"$f":"B1","v":"-- bit"},"00002",{"$f":"Eingabeblatt!G13","v":0},{"$f":"ROUND(D2/1,0)","v":0},{"$f":"RIGHT(A2,2)","v":"--"},";",{"$f":"F2&G2&B2&G2&C2&G2&G2&E2","v":"--;-- bit;00002;;0"}]
[{"$f":"A2","v":"-- bitte auswählen --"},{"$f":"B2","v":"-- bit"},"01110",{"$f":"Eingabeblatt!G17","v":0},{"$f":"ROUND(D3/1,0)","v":0},{"$f":"RIGHT(A2,2)","v":"--"},";",{"$f":"F3&G3&B2&G3&C3&G3&G3&E3","v":"--;-- bit;01110;;0"}]
[{"$f":"A3","v":"-- bitte auswählen --"},{"$f":"B3","v":"-- bit"},"01111",{"$f":"Eingabeblatt!G18","v":0},{"$f":"ROUND(D4/1,0)","v":0},"--",";","--;-- bit;01111;;0"]
["-- bitte auswählen --","-- bit","01112",{"$f":"Eingabeblatt!G19","v":0},0,"--",";","--;-- bit;01112;;0"]
["-- bitte auswählen --","-- bit","01113",{"$f":"Eingabeblatt!G20","v":0},0,"--",";","--;-- bit;01113;;0"]
["-- bitte auswählen --","-- bit","01114",{"$f":"Eingabeblatt!G21","v":0},0,"--",";","--;-- bit;01114;;0"]
["-- bitte auswählen --","-- bit","01115",{"$f":"Eingabeblatt!G22","v":0},0,"--",";","--;-- bit;01115;;0"]
["-- bitte auswählen --","-- bit","01116",{"$f":"Eingabeblatt!G23","v":0},0,"--",";","--;-- bit;01116;;0"]
["-- bitte auswählen --","-- bit","01117",{"$f":"Eingabeblatt!G24","v":0},0,"--",";","--;-- bit;01117;;0"]
["-- bitte auswählen --","-- bit","01118",{"$f":"Eingabeblatt!G25","v":0},0,"--",";","--;-- bit;01118;;0"]
["-- bitte auswählen --","-- bit","01119",{"$f":"Eingabeblatt!G26","v":0},0,"--",";","--;-- bit;01119;;0"]
["-- bitte auswählen --","-- bit","01120",{"$f":"Eingabeblatt!G27","v":0},0,"--",";","--;-- bit;01120;;0"]
["-- bitte auswählen --","-- bit","01121",{"$f":"Eingabeblatt!G28","v":0},0,"--",";","--;-- bit;01121;;0"]
["-- bitte auswählen --","-- bit","02110",{"$f":"Eingabeblatt!G32","v":0},0,"--",";","--;-- bit;02110;;0"]
["-- bitte auswählen --","-- bit","02111",{"$f":"Eingabeblatt!G33","v":0},0,"--",";","--;-- bit;02111;;0"]
["-- bitte auswählen --","-- bit","02112",{"$f":"Eingabeblatt!G34","v":0},0,"--",";","--;-- bit;02112;;0"]
["-- bitte auswählen --","-- bit","02113",{"$f":"Eingabeblatt!G35","v":0},0,"--",";","--;-- bit;02113;;0"]
["-- bitte auswählen --","-- bit","02114",{"$f":"Eingabeblatt!G36","v":0},0,"--",";","--;-- bit;02114;;0"]
["-- bitte auswählen --","-- bit","02115",{"$f":"Eingabeblatt!G37","v":0},0,"--",";","--;-- bit;02115;;0"]
["-- bitte auswählen --","-- bit","02116",{"$f":"Eingabeblatt!G38","v":0},0,"--",";","--;-- bit;02116;;0"]
["-- bitte auswählen --","-- bit","02117",{"$f":"Eingabeblatt!G39","v":0},0,"--",";","--;-- bit;02117;;0"]
["-- bitte auswählen --","-- bit","02118",{"$f":"Eingabeblatt!G40","v":0},0,"--",";","--;-- bit;02118;;0"]
["-- bitte auswählen --","-- bit","02119",{"$f":"Eingabeblatt!G41","v":0},0,"--",";","--;-- bit;02119;;0"]
["-- bitte auswählen --","-- bit","02120",{"$f":"Eingabeblatt!G42","v":0},0,"--",";","--;-- bit;02120;;0"]
["-- bitte auswählen --","-- bit","02121",{"$f":"Eingabeblatt!G43","v":0},0,"--",";","--;-- bit;02121;;0"]
["-- bitte auswählen --","-- bit","02210",{"$f":"Eingabeblatt!G45","v":0},0,"--",";","--;-- bit;02210;;0"]
["-- bitte auswählen --","-- bit","02211",{"$f":"Eingabeblatt!G46","v":0},0,"--",";","--;-- bit;02211;;0"]
["-- bitte auswählen --","-- bit","02212",{"$f":"Eingabeblatt!G47","v":0},0,"--",";","--;-- bit;02212;;0"]
["-- bitte auswählen --","-- bit","02213",{"$f":"Eingabeblatt!G48","v":0},0,"--",";","--;-- bit;02213;;0"]
["-- bitte auswählen --","-- bit","02214",{"$f":"Eingabeblatt!G49","v":0},0,"--",";","--;-- bit;02214;;0"]
["-- bitte auswählen --","-- bit","02215",{"$f":"Eingabeblatt!G50","v":0},0,"--",";","--;-- bit;02215;;0"]
["-- bitte auswählen --","-- bit","02216",{"$f":"Eingabeblatt!G51","v":0},0,"--",";","--;-- bit;02216;;0"]
["-- bitte auswählen --","-- bit","02217",{"$f":"Eingabeblatt!G52","v":0},0,"--",";","--;-- bit;02217;;0"]
["-- bitte auswählen --","-- bit","02218",{"$f":"Eingabeblatt!G53","v":0},0,"--",";","--;-- bit;02218;;0"]
["-- bitte auswählen --","-- bit","02219",{"$f":"Eingabeblatt!G54","v":0},0,"--",";","--;-- bit;02219;;0"]
["-- bitte auswählen --","-- bit","02220",{"$f":"Eingabeblatt!G55","v":0},0,"--",";","--;-- bit;02220;;0"]
["-- bitte auswählen --","-- bit","02221",{"$f":"Eingabeblatt!G56","v":0},0,"--",";","--;-- bit;02221;;0"]
["-- bitte auswählen --","-- bit","02310",{"$f":"Eingabeblatt!G58","v":0},0,"--",";","--;-- bit;02310;;0"]
["-- bitte auswählen --","-- bit","02311",{"$f":"Eingabeblatt!G59","v":0},0,"--",";","--;-- bit;02311;;0"]
["-- bitte auswählen --","-- bit","02312",{"$f":"Eingabeblatt!G60","v":0},0,"--",";","--;-- bit;02312;;0"]
["-- bitte auswählen --","-- bit","02313",{"$f":"Eingabeblatt!G61","v":0},0,"--",";","--;-- bit;02313;;0"]
["-- bitte auswählen --","-- bit","02314",{"$f":"Eingabeblatt!G62","v":0},0,"--",";","--;-- bit;02314;;0"]
["-- bitte auswählen --","-- bit","02315",{"$f":"Eingabeblatt!G63","v":0},0,"--",";","--;-- bit;02315;;0"]
["-- bitte auswählen --","-- bit","02316",{"$f":"Eingabeblatt!G64","v":0},0,"--",";","--;-- bit;02316;;0"]
["-- bitte auswählen --","-- bit","02317",{"$f":"Eingabeblatt!G65","v":0},0,"--",";","--;-- bit;02317;;0"]
["-- bitte auswählen --","-- bit","02318",{"$f":"Eingabeblatt!G66","v":0},0,"--",";","--;-- bit;02318;;0"]
["-- bitte auswählen --","-- bit","02319",{"$f":"Eingabeblatt!G67","v":0},0,"--",";","--;-- bit;02319;;0"]
["-- bitte auswählen --","-- bit","02320",{"$f":"Eingabeblatt!G68","v":0},0,"--",";","--;-- bit;02320;;0"]
["-- bitte auswählen --","-- bit","02321",{"$f":"Eingabeblatt!G69","v":0},0,"--",";","--;-- bit;02321;;0"]
["-- bitte auswählen --","-- bit","02410",{"$f":"Eingabeblatt!G71","v":0},0,"--",";","--;-- bit;02410;;0"]
["-- bitte auswählen --","-- bit","02411",{"$f":"Eingabeblatt!G72","v":0},0,"--",";","--;-- bit;02411;;0"]
["-- bitte auswählen --","-- bit","02412",{"$f":"Eingabeblatt!G73","v":0},0,"--",";","--;-- bit;02412;;0"]
["-- bitte auswählen --","-- bit","02413",{"$f":"Eingabeblatt!G74","v":0},0,"--",";","--;-- bit;02413;;0"]
["-- bitte auswählen --","-- bit","02414",{"$f":"Eingabeblatt!G75","v":0},0,"--",";","--;-- bit;02414;;0"]
["-- bitte auswählen --","-- bit","02415",{"$f":"Eingabeblatt!G76","v":0},0,"--",";","--;-- bit;02415;;0"]
["-- bitte auswählen --","-- bit","02416",{"$f":"Eingabeblatt!G77","v":0},0,"--",";","--;-- bit;02416;;0"]
["-- bitte auswählen --","-- bit","02417",{"$f":"Eingabeblatt!G78","v":0},0,"--",";","--;-- bit;02417;;0"]
["-- bitte auswählen --","-- bit","02418",{"$f":"Eingabeblatt!G79","v":0},0,"--",";","--;-- bit;02418;;0"]
["-- bitte auswählen --","-- bit","02419",{"$f":"Eingabeblatt!G80","v":0},0,"--",";","--;-- bit;02419;;0"]
["-- bitte auswählen --","-- bit","02420",{"$f":"Eingabeblatt!G81","v":0},0,"--",";","--;-- bit;02420;;0"]
["-- bitte auswählen --","-- bit","02421",{"$f":"Eingabeblatt!G82","v":0},0,"--",";","--;-- bit;02421;;0"]
["-- bitte auswählen --","-- bit","03110",{"$f":"Eingabeblatt!G86","v":0},0,"--",";","--;-- bit;03110;;0"]
["-- bitte auswählen --","-- bit","03111",{"$f":"Eingabeblatt!G87","v":0},0,"--",";","--;-- bit;03111;;0"]
["-- bitte auswählen --","-- bit","03112",{"$f":"Eingabeblatt!G88","v":0},0,"--",";","--;-- bit;03112;;0"]
["-- bitte auswählen --","-- bit","03113",{"$f":"Eingabeblatt!G89","v":0},0,"--",";","--;-- bit;03113;;0"]
["-- bitte auswählen --","-- bit","03114",{"$f":"Eingabeblatt!G90","v":0},0,{"$f":"RIGHT(A66,2)","v":"--"},";",{"$f":"F67&G67&B66&G67&C67&G67&G67&E67","v":"--;-- bit;03114;;0"}]
[{"$f":"A67","v":"-- bitte auswählen --"},{"$f":"B67","v":"-- bit"},"03115",{"$f":"Eingabeblatt!G91","v":0},{"$f":"ROUND(D68/1,0)","v":0},"--",";","--;-- bit;03115;;0"]
["-- bitte auswählen --","-- bit","03116",{"$f":"Eingabeblatt!G92","v":0},0,"--",";","--;-- bit;03116;;0"]
["-- bitte auswählen --","-- bit","03117",{"$f":"Eingabeblatt!G93","v":0},0,"--",";","--;-- bit;03117;;0"]
["-- bitte auswählen --","-- bit","03118",{"$f":"Eingabeblatt!G94","v":0},0,"--",";","--;-- bit;03118;;0"]
["-- bitte auswählen --","-- bit","03119",{"$f":"Eingabeblatt!G95","v":0},0,"--",";","--;-- bit;03119;;0"]
["-- bitte auswählen --","-- bit","03120",{"$f":"Eingabeblatt!G96","v":0},0,"--",";","--;-- bit;03120;;0"]
["-- bitte auswählen --","-- bit","03121",{"$f":"Eingabeblatt!G97","v":0},0,"--",";","--;-- bit;03121;;0"]
["-- bitte auswählen --","-- bit","03210",{"$f":"Eingabeblatt!G99","v":0},0,"--",";","--;-- bit;03210;;0"]
["-- bitte auswählen --","-- bit","03211",{"$f":"Eingabeblatt!G100","v":0},0,"--",";","--;-- bit;03211;;0"]
["-- bitte auswählen --","-- bit","03212",{"$f":"Eingabeblatt!G101","v":0},0,"--",";","--;-- bit;03212;;0"]
["-- bitte auswählen --","-- bit","03213",{"$f":"Eingabeblatt!G102","v":0},0,"--",";","--;-- bit;03213;;0"]
["-- bitte auswählen --","-- bit","03214",{"$f":"Eingabeblatt!G103","v":0},0,"--",";","--;-- bit;03214;;0"]
["-- bitte auswählen --","-- bit","03215",{"$f":"Eingabeblatt!G104","v":0},0,"--",";","--;-- bit;03215;;0"]
["-- bitte auswählen --","-- bit","03216",{"$f":"Eingabeblatt!G105","v":0},0,"--",";","--;-- bit;03216;;0"]
["-- bitte auswählen --","-- bit","03217",{"$f":"Eingabeblatt!G106","v":0},0,"--",";","--;-- bit;03217;;0"]
["-- bitte auswählen --","-- bit","03218",{"$f":"Eingabeblatt!G107","v":0},0,"--",";","--;-- bit;03218;;0"]
["-- bitte auswählen --","-- bit","03219",{"$f":"Eingabeblatt!G108","v":0},0,"--",";","--;-- bit;03219;;0"]
["-- bitte auswählen --","-- bit","03220",{"$f":"Eingabeblatt!G109","v":0},0,"--",";","--;-- bit;03220;;0"]
["-- bitte auswählen --","-- bit","03221",{"$f":"Eingabeblatt!G110","v":0},0,"--",";","--;-- bit;03221;;0"]
["-- bitte auswählen --","-- bit","03310",{"$f":"Eingabeblatt!G112","v":0},0,"--",";","--;-- bit;03310;;0"]
["-- bitte auswählen --","-- bit","03311",{"$f":"Eingabeblatt!G113","v":0},0,"--",";","--;-- bit;03311;;0"]
["-- bitte auswählen --","-- bit","03312",{"$f":"Eingabeblatt!G114","v":0},0,"--",";","--;-- bit;03312;;0"]
["-- bitte auswählen --","-- bit","03313",{"$f":"Eingabeblatt!G115","v":0},0,"--",";","--;-- bit;03313;;0"]
["-- bitte auswählen --","-- bit","03314",{"$f":"Eingabeblatt!G116","v":0},0,"--",";","--;-- bit;03314;;0"]
["-- bitte auswählen --","-- bit","03315",{"$f":"Eingabeblatt!G117","v":0},0,"--",";","--;-- bit;03315;;0"]
["-- bitte auswählen --","-- bit","03316",{"$f":"Eingabeblatt!G118","v":0},0,"--",";","--;-- bit;03316;;0"]
["-- bitte auswählen --","-- bit","03317",{"$f":"Eingabeblatt!G119","v":0},0,"--",";","--;-- bit;03317;;0"]
["-- bitte auswählen --","-- bit","03318",{"$f":"Eingabeblatt!G120","v":0},0,"--",";","--;-- bit;03318;;0"]
["-- bitte auswählen --","-- bit","03319",{"$f":"Eingabeblatt!G121","v":0},0,"--",";","--;-- bit;03319;;0"]
["-- bitte auswählen --","-- bit","03320",{"$f":"Eingabeblatt!G122","v":0},0,"--",";","--;-- bit;03320;;0"]
["-- bitte auswählen --","-- bit","03321",{"$f":"Eingabeblatt!G123","v":0},0,"--",";","--;-- bit;03321;;0"]
["-- bitte auswählen --","-- bit","03910",{"$f":"Eingabeblatt!G125","v":0},0,"--",";","--;-- bit;03910;;0"]
["-- bitte auswählen --","-- bit","03911",{"$f":"Eingabeblatt!G126","v":0},0,"--",";","--;-- bit;03911;;0"]
["-- bitte auswählen --","-- bit","03912",{"$f":"Eingabeblatt!G127","v":0},0,"--",";","--;-- bit;03912;;0"]
["-- bitte auswählen --","-- bit","03913",{"$f":"Eingabeblatt!G128","v":0},0,"--",";","--;-- bit;03913;;0"]
["-- bitte auswählen --","-- bit","03914",{"$f":"Eingabeblatt!G129","v":0},0,"--",";","--;-- bit;03914;;0"]
["-- bitte auswählen --","-- bit","03915",{"$f":"Eingabeblatt!G130","v":0},0,"--",";","--;-- bit;03915;;0"]
["-- bitte auswählen --","-- bit","03916",{"$f":"Eingabeblatt!G131","v":0},0,"--",";","--;-- bit;03916;;0"]
["-- bitte auswählen --","-- bit","03917",{"$f":"Eingabeblatt!G132","v":0},0,"--",";","--;-- bit;03917;;0"]
["-- bitte auswählen --","-- bit","03918",{"$f":"Eingabeblatt!G133","v":0},0,"--",";","--;-- bit;03918;;0"]
["-- bitte auswählen --","-- bit","03919",{"$f":"Eingabeblatt!G134","v":0},0,"--",";","--;-- bit;03919;;0"]
["-- bitte auswählen --","-- bit","03920",{"$f":"Eingabeblatt!G135","v":0},0,"--",";","--;-- bit;03920;;0"]
["-- bitte auswählen --","-- bit","03921",{"$f":"Eingabeblatt!G136","v":0},0,"--",";","--;-- bit;03921;;0"]
["-- bitte auswählen --","-- bit","04110",{"$f":"Eingabeblatt!G140","v":0},0,"--",";","--;-- bit;04110;;0"]
["-- bitte auswählen --","-- bit","04111",{"$f":"Eingabeblatt!G141","v":0},0,"--",";","--;-- bit;04111;;0"]
["-- bitte auswählen --","-- bit","04112",{"$f":"Eingabeblatt!G142","v":0},0,"--",";","--;-- bit;04112;;0"]
["-- bitte auswählen --","-- bit","04113",{"$f":"Eingabeblatt!G143","v":0},0,"--",";","--;-- bit;04113;;0"]
["-- bitte auswählen --","-- bit","04114",{"$f":"Eingabeblatt!G144","v":0},0,"--",";","--;-- bit;04114;;0"]
["-- bitte auswählen --","-- bit","04115",{"$f":"Eingabeblatt!G145","v":0},0,"--",";","--;-- bit;04115;;0"]
["-- bitte auswählen --","-- bit","04116",{"$f":"Eingabeblatt!G146","v":0},0,"--",";","--;-- bit;04116;;0"]
["-- bitte auswählen --","-- bit","04117",{"$f":"Eingabeblatt!G147","v":0},0,"--",";","--;-- bit;04117;;0"]
["-- bitte auswählen --","-- bit","04118",{"$f":"Eingabeblatt!G148","v":0},0,"--",";","--;-- bit;04118;;0"]
["-- bitte auswählen --","-- bit","04119",{"$f":"Eingabeblatt!G149","v":0},0,"--",";","--;-- bit;04119;;0"]
["-- bitte auswählen --","-- bit","04120",{"$f":"Eingabeblatt!G150","v":0},0,"--",";","--;-- bit;04120;;0"]
["-- bitte auswählen --","-- bit","04121",{"$f":"Eingabeblatt!G151","v":0},0,"--",";","--;-- bit;04121;;0"]
["-- bitte auswählen --","-- bit","04210",{"$f":"Eingabeblatt!G153","v":0},0,"--",";","--;-- bit;04210;;0"]
["-- bitte auswählen --","-- bit","04211",{"$f":"Eingabeblatt!G154","v":0},0,"--",";","--;-- bit;04211;;0"]
["-- bitte auswählen --","-- bit","04212",{"$f":"Eingabeblatt!G155","v":0},0,"--",";","--;-- bit;04212;;0"]
["-- bitte auswählen --","-- bit","04213",{"$f":"Eingabeblatt!G156","v":0},0,"--",";","--;-- bit;04213;;0"]
["-- bitte auswählen --","-- bit","04214",{"$f":"Eingabeblatt!G157","v":0},0,"--",";","--;-- bit;04214;;0"]
["-- bitte auswählen --","-- bit","04215",{"$f":"Eingabeblatt!G158","v":0},0,"--",";","--;-- bit;04215;;0"]
["-- bitte auswählen --","-- bit","04216",{"$f":"Eingabeblatt!G159","v":0},0,"--",";","--;-- bit;04216;;0"]
["-- bitte auswählen --","-- bit","04217",{"$f":"Eingabeblatt!G160","v":0},0,"--",";","--;-- bit;04217;;0"]
["-- bitte auswählen --","-- bit","04218",{"$f":"Eingabeblatt!G161","v":0},0,{"$f":"RIGHT(A130,2)","v":"--"},";",{"$f":"F131&G131&B130&G131&C131&G131&G131&E131","v":"--;-- bit;04218;;0"}]
[{"$f":"A131","v":"-- bitte auswählen --"},{"$f":"B131","v":"-- bit"},"04219",{"$f":"Eingabeblatt!G162","v":0},{"$f":"ROUND(D132/1,0)","v":0},"--",";","--;-- bit;04219;;0"]
["-- bitte auswählen --","-- bit","04220",{"$f":"Eingabeblatt!G163","v":0},0,"--",";","--;-- bit;04220;;0"]
["-- bitte auswählen --","-- bit","04221",{"$f":"Eingabeblatt!G164","v":0},0,"--",";","--;-- bit;04221;;0"]
["-- bitte auswählen --","-- bit","04310",{"$f":"Eingabeblatt!G166","v":0},0,"--",";","--;-- bit;04310;;0"]
["-- bitte auswählen --","-- bit","04311",{"$f":"Eingabeblatt!G167","v":0},0,"--",";","--;-- bit;04311;;0"]
["-- bitte auswählen --","-- bit","04312",{"$f":"Eingabeblatt!G168","v":0},0,"--",";","--;-- bit;04312;;0"]
["-- bitte auswählen --","-- bit","04313",{"$f":"Eingabeblatt!G169","v":0},0,"--",";","--;-- bit;04313;;0"]
["-- bitte auswählen --","-- bit","04314",{"$f":"Eingabeblatt!G170","v":0},0,"--",";","--;-- bit;04314;;0"]
["-- bitte auswählen --","-- bit","04315",{"$f":"Eingabeblatt!G171","v":0},0,"--",";","--;-- bit;04315;;0"]
["-- bitte auswählen --","-- bit","04316",{"$f":"Eingabeblatt!G172","v":0},0,"--",";","--;-- bit;04316;;0"]
["-- bitte auswählen --","-- bit","04317",{"$f":"Eingabeblatt!G173","v":0},0,"--",";","--;-- bit;04317;;0"]
["-- bitte auswählen --","-- bit","04318",{"$f":"Eingabeblatt!G174","v":0},0,"--",";","--;-- bit;04318;;0"]
["-- bitte auswählen --","-- bit","04319",{"$f":"Eingabeblatt!G175","v":0},0,"--",";","--;-- bit;04319;;0"]
["-- bitte auswählen --","-- bit","04320",{"$f":"Eingabeblatt!G176","v":0},0,"--",";","--;-- bit;04320;;0"]
["-- bitte auswählen --","-- bit","04321",{"$f":"Eingabeblatt!G177","v":0},0,"--",";","--;-- bit;04321;;0"]
["-- bitte auswählen --","-- bit","04410",{"$f":"Eingabeblatt!G179","v":0},0,"--",";","--;-- bit;04410;;0"]
["-- bitte auswählen --","-- bit","04411",{"$f":"Eingabeblatt!G180","v":0},0,"--",";","--;-- bit;04411;;0"]
["-- bitte auswählen --","-- bit","04412",{"$f":"Eingabeblatt!G181","v":0},0,"--",";","--;-- bit;04412;;0"]
["-- bitte auswählen --","-- bit","04413",{"$f":"Eingabeblatt!G182","v":0},0,"--",";","--;-- bit;04413;;0"]
["-- bitte auswählen --","-- bit","04414",{"$f":"Eingabeblatt!G183","v":0},0,"--",";","--;-- bit;04414;;0"]
["-- bitte auswählen --","-- bit","04415",{"$f":"Eingabeblatt!G184","v":0},0,"--",";","--;-- bit;04415;;0"]
["-- bitte auswählen --","-- bit","04416",{"$f":"Eingabeblatt!G185","v":0},0,"--",";","--;-- bit;04416;;0"]
["-- bitte auswählen --","-- bit","04417",{"$f":"Eingabeblatt!G186","v":0},0,"--",";","--;-- bit;04417;;0"]
["-- bitte auswählen --","-- bit","04418",{"$f":"Eingabeblatt!G187","v":0},0,"--",";","--;-- bit;04418;;0"]
["-- bitte auswählen --","-- bit","04419",{"$f":"Eingabeblatt!G188","v":0},0,"--",";","--;-- bit;04419;;0"]
["-- bitte auswählen --","-- bit","04420",{"$f":"Eingabeblatt!G189","v":0},0,"--",";","--;-- bit;04420;;0"]
["-- bitte auswählen --","-- bit","04421",{"$f":"Eingabeblatt!G190","v":0},0,"--",";","--;-- bit;04421;;0"]
["-- bitte auswählen --","-- bit","04510",{"$f":"Eingabeblatt!G192","v":0},0,"--",";","--;-- bit;04510;;0"]
["-- bitte auswählen --","-- bit","04511",{"$f":"Eingabeblatt!G193","v":0},0,"--",";","--;-- bit;04511;;0"]
["-- bitte auswählen --","-- bit","04512",{"$f":"Eingabeblatt!G194","v":0},0,"--",";","--;-- bit;04512;;0"]
["-- bitte auswählen --","-- bit","04513",{"$f":"Eingabeblatt!G195","v":0},0,"--",";","--;-- bit;04513;;0"]
["-- bitte auswählen --","-- bit","04514",{"$f":"Eingabeblatt!G196","v":0},0,"--",";","--;-- bit;04514;;0"]
["-- bitte auswählen --","-- bit","04515",{"$f":"Eingabeblatt!G197","v":0},0,"--",";","--;-- bit;04515;;0"]
["-- bitte auswählen --","-- bit","04516",{"$f":"Eingabeblatt!G198","v":0},0,"--",";","--;-- bit;04516;;0"]
["-- bitte auswählen --","-- bit","04517",{"$f":"Eingabeblatt!G199","v":0},0,"--",";","--;-- bit;04517;;0"]
["-- bitte auswählen --","-- bit","04518",{"$f":"Eingabeblatt!G200","v":0},0,"--",";","--;-- bit;04518;;0"]
["-- bitte auswählen --","-- bit","04519",{"$f":"Eingabeblatt!G201","v":0},0,"--",";","--;-- bit;04519;;0"]
["-- bitte auswählen --","-- bit","04520",{"$f":"Eingabeblatt!G202","v":0},0,"--",";","--;-- bit;04520;;0"]
["-- bitte auswählen --","-- bit","04521",{"$f":"Eingabeblatt!G203","v":0},0,"--",";","--;-- bit;04521;;0"]
["-- bitte auswählen --","-- bit","04910",{"$f":"Eingabeblatt!G205","v":0},0,"--",";","--;-- bit;04910;;0"]
["-- bitte auswählen --","-- bit","04911",{"$f":"Eingabeblatt!G206","v":0},0,"--",";","--;-- bit;04911;;0"]
["-- bitte auswählen --","-- bit","04912",{"$f":"Eingabeblatt!G207","v":0},0,"--",";","--;-- bit;04912;;0"]
["-- bitte auswählen --","-- bit","04913",{"$f":"Eingabeblatt!G208","v":0},0,"--",";","--;-- bit;04913;;0"]
["-- bitte auswählen --","-- bit","04914",{"$f":"Eingabeblatt!G209","v":0},0,"--",";","--;-- bit;04914;;0"]
["-- bitte auswählen --","-- bit","04915",{"$f":"Eingabeblatt!G210","v":0},0,"--",";","--;-- bit;04915;;0"]
["-- bitte auswählen --","-- bit","04916",{"$f":"Eingabeblatt!G211","v":0},0,"--",";","--;-- bit;04916;;0"]
["-- bitte auswählen --","-- bit","04917",{"$f":"Eingabeblatt!G212","v":0},0,"--",";","--;-- bit;04917;;0"]
["-- bitte auswählen --","-- bit","04918",{"$f":"Eingabeblatt!G213","v":0},0,"--",";","--;-- bit;04918;;0"]
["-- bitte auswählen --","-- bit","04919",{"$f":"Eingabeblatt!G214","v":0},0,"--",";","--;-- bit;04919;;0"]
["-- bitte auswählen --","-- bit","04920",{"$f":"Eingabeblatt!G215","v":0},0,"--",";","--;-- bit;04920;;0"]
["-- bitte auswählen --","-- bit","04921",{"$f":"Eingabeblatt!G216","v":0},0,"--",";","--;-- bit;04921;;0"]
["-- bitte auswählen --","-- bit","05110",{"$f":"Eingabeblatt!G220","v":0},0,"--",";","--;-- bit;05110;;0"]
["-- bitte auswählen --","-- bit","05111",{"$f":"Eingabeblatt!G221","v":0},0,"--",";","--;-- bit;05111;;0"]
["-- bitte auswählen --","-- bit","05112",{"$f":"Eingabeblatt!G222","v":0},0,"--",";","--;-- bit;05112;;0"]
["-- bitte auswählen --","-- bit","05113",{"$f":"Eingabeblatt!G223","v":0},0,"--",";","--;-- bit;05113;;0"]
["-- bitte auswählen --","-- bit","05114",{"$f":"Eingabeblatt!G224","v":0},0,"--",";","--;-- bit;05114;;0"]
["-- bitte auswählen --","-- bit","05115",{"$f":"Eingabeblatt!G225","v":0},0,"--",";","--;-- bit;05115;;0"]
["-- bitte auswählen --","-- bit","05116",{"$f":"Eingabeblatt!G226","v":0},0,"--",";","--;-- bit;05116;;0"]
["-- bitte auswählen --","-- bit","05117",{"$f":"Eingabeblatt!G227","v":0},0,"--",";","--;-- bit;05117;;0"]
["-- bitte auswählen --","-- bit","05118",{"$f":"Eingabeblatt!G228","v":0},0,"--",";","--;-- bit;05118;;0"]
["-- bitte auswählen --","-- bit","05119",{"$f":"Eingabeblatt!G229","v":0},0,"--",";","--;-- bit;05119;;0"]
["-- bitte auswählen --","-- bit","05120",{"$f":"Eingabeblatt!G230","v":0},0,"--",";","--;-- bit;05120;;0"]
["-- bitte auswählen --","-- bit","05121",{"$f":"Eingabeblatt!G231","v":0},0,"--",";","--;-- bit;05121;;0"]
["-- bitte auswählen --","-- bit","06110",{"$f":"Eingabeblatt!G235","v":0},0,{"$f":"RIGHT(A194,2)","v":"--"},";",{"$f":"F195&G195&B194&G195&C195&G195&G195&E195","v":"--;-- bit;06110;;0"}]
[{"$f":"A195","v":"-- bitte auswählen --"},{"$f":"B195","v":"-- bit"},"06111",{"$f":"Eingabeblatt!G236","v":0},{"$f":"ROUND(D196/1,0)","v":0},"--",";","--;-- bit;06111;;0"]
["-- bitte auswählen --","-- bit","06112",{"$f":"Eingabeblatt!G237","v":0},0,"--",";","--;-- bit;06112;;0"]
["-- bitte auswählen --","-- bit","06113",{"$f":"Eingabeblatt!G238","v":0},0,"--",";","--;-- bit;06113;;0"]
["-- bitte auswählen --","-- bit","06114",{"$f":"Eingabeblatt!G239","v":0},0,"--",";","--;-- bit;06114;;0"]
["-- bitte auswählen --","-- bit","06115",{"$f":"Eingabeblatt!G240","v":0},0,"--",";","--;-- bit;06115;;0"]
["-- bitte auswählen --","-- bit","06116",{"$f":"Eingabeblatt!G241","v":0},0,"--",";","--;-- bit;06116;;0"]
["-- bitte auswählen --","-- bit","06117",{"$f":"Eingabeblatt!G242","v":0},0,"--",";","--;-- bit;06117;;0"]
["-- bitte auswählen --","-- bit","06118",{"$f":"Eingabeblatt!G243","v":0},0,"--",";","--;-- bit;06118;;0"]
["-- bitte auswählen --","-- bit","06119",{"$f":"Eingabeblatt!G244","v":0},0,"--",";","--;-- bit;06119;;0"]
["-- bitte auswählen --","-- bit","06120",{"$f":"Eingabeblatt!G245","v":0},0,"--",";","--;-- bit;06120;;0"]
["-- bitte auswählen --","-- bit","06121",{"$f":"Eingabeblatt!G246","v":0},0,"--",";","--;-- bit;06121;;0"]
["-- bitte auswählen --","-- bit","07110",{"$f":"Eingabeblatt!G250","v":0},0,"--",";","--;-- bit;07110;;0"]
["-- bitte auswählen --","-- bit","07111",{"$f":"Eingabeblatt!G251","v":0},0,"--",";","--;-- bit;07111;;0"]
["-- bitte auswählen --","-- bit","07112",{"$f":"Eingabeblatt!G252","v":0},0,"--",";","--;-- bit;07112;;0"]
["-- bitte auswählen --","-- bit","07113",{"$f":"Eingabeblatt!G253","v":0},0,"--",";","--;-- bit;07113;;0"]
["-- bitte auswählen --","-- bit","07114",{"$f":"Eingabeblatt!G254","v":0},0,"--",";","--;-- bit;07114;;0"]
["-- bitte auswählen --","-- bit","07115",{"$f":"Eingabeblatt!G255","v":0},0,"--",";","--;-- bit;07115;;0"]
["-- bitte auswählen --","-- bit","07116",{"$f":"Eingabeblatt!G256","v":0},0,"--",";","--;-- bit;07116;;0"]
["-- bitte auswählen --","-- bit","07117",{"$f":"Eingabeblatt!G257","v":0},0,"--",";","--;-- bit;07117;;0"]
["-- bitte auswählen --","-- bit","07118",{"$f":"Eingabeblatt!G258","v":0},0,"--",";","--;-- bit;07118;;0"]
["-- bitte auswählen --","-- bit","07119",{"$f":"Eingabeblatt!G259","v":0},0,"--",";","--;-- bit;07119;;0"]
["-- bitte auswählen --","-- bit","07120",{"$f":"Eingabeblatt!G260","v":0},0,"--",";","--;-- bit;07120;;0"]
["-- bitte auswählen --","-- bit","07121",{"$f":"Eingabeblatt!G261","v":0},0,"--",";","--;-- bit;07121;;0"]
["-- bitte auswählen --","-- bit","08110",{"$f":"Eingabeblatt!G265","v":0},0,"--",";","--;-- bit;08110;;0"]
["-- bitte auswählen --","-- bit","08111",{"$f":"Eingabeblatt!G266","v":0},0,"--",";","--;-- bit;08111;;0"]
["-- bitte auswählen --","-- bit","08112",{"$f":"Eingabeblatt!G267","v":0},0,"--",";","--;-- bit;08112;;0"]
["-- bitte auswählen --","-- bit","08113",{"$f":"Eingabeblatt!G268","v":0},0,"--",";","--;-- bit;08113;;0"]
["-- bitte auswählen --","-- bit","08114",{"$f":"Eingabeblatt!G269","v":0},0,"--",";","--;-- bit;08114;;0"]
["-- bitte auswählen --","-- bit","08115",{"$f":"Eingabeblatt!G270","v":0},0,"--",";","--;-- bit;08115;;0"]
["-- bitte auswählen --","-- bit","08116",{"$f":"Eingabeblatt!G271","v":0},0,"--",";","--;-- bit;08116;;0"]
["-- bitte auswählen --","-- bit","08117",{"$f":"Eingabeblatt!G272","v":0},0,"--",";","--;-- bit;08117;;0"]
["-- bitte auswählen --","-- bit","08118",{"$f":"Eingabeblatt!G273","v":0},0,"--",";","--;-- bit;08118;;0"]
["-- bitte auswählen --","-- bit","08119",{"$f":"Eingabeblatt!G274","v":0},0,"--",";","--;-- bit;08119;;0"]
["-- bitte auswählen --","-- bit","08120",{"$f":"Eingabeblatt!G275","v":0},0,"--",";","--;-- bit;08120;;0"]
["-- bitte auswählen --","-- bit","08121",{"$f":"Eingabeblatt!G276","v":0},0,"--",";","--;-- bit;08121;;0"]
["-- bitte auswählen --","-- bit","09110",{"$f":"Eingabeblatt!G280","v":0},0,"--",";","--;-- bit;09110;;0"]
["-- bitte auswählen --","-- bit","09111",{"$f":"Eingabeblatt!G281","v":0},0,"--",";","--;-- bit;09111;;0"]
["-- bitte auswählen --","-- bit","09112",{"$f":"Eingabeblatt!G282","v":0},0,"--",";","--;-- bit;09112;;0"]
["-- bitte auswählen --","-- bit","09113",{"$f":"Eingabeblatt!G283","v":0},0,"--",";","--;-- bit;09113;;0"]
["-- bitte auswählen --","-- bit","09114",{"$f":"Eingabeblatt!G284","v":0},0,"--",";","--;-- bit;09114;;0"]
["-- bitte auswählen --","-- bit","09115",{"$f":"Eingabeblatt!G285","v":0},0,"--",";","--;-- bit;09115;;0"]
["-- bitte auswählen --","-- bit","09116",{"$f":"Eingabeblatt!G286","v":0},0,"--",";","--;-- bit;09116;;0"]
["-- bitte auswählen --","-- bit","09117",{"$f":"Eingabeblatt!G287","v":0},0,"--",";","--;-- bit;09117;;0"]
["-- bitte auswählen --","-- bit","09118",{"$f":"Eingabeblatt!G288","v":0},0,"--",";","--;-- bit;09118;;0"]
["-- bitte auswählen --","-- bit","09119",{"$f":"Eingabeblatt!G289","v":0},0,"--",";","--;-- bit;09119;;0"]
["-- bitte auswählen --","-- bit","09120",{"$f":"Eingabeblatt!G290","v":0},0,"--",";","--;-- bit;09120;;0"]
["-- bitte auswählen --","-- bit","09121",{"$f":"Eingabeblatt!G291","v":0},0,"--",";","--;-- bit;09121;;0"]
["-- bitte auswählen --","-- bit","10110",{"$f":"Eingabeblatt!G295","v":0},0,"--",";","--;-- bit;10110;;0"]
["-- bitte auswählen --","-- bit","10111",{"$f":"Eingabeblatt!G296","v":0},0,"--",";","--;-- bit;10111;;0"]
["-- bitte auswählen --","-- bit","10112",{"$f":"Eingabeblatt!G297","v":0},0,"--",";","--;-- bit;10112;;0"]
["-- bitte auswählen --","-- bit","10113",{"$f":"Eingabeblatt!G298","v":0},0,"--",";","--;-- bit;10113;;0"]
["-- bitte auswählen --","-- bit","10114",{"$f":"Eingabeblatt!G299","v":0},0,"--",";","--;-- bit;10114;;0"]
["-- bitte auswählen --","-- bit","10115",{"$f":"Eingabeblatt!G300","v":0},0,"--",";","--;-- bit;10115;;0"]
["-- bitte auswählen --","-- bit","10116",{"$f":"Eingabeblatt!G301","v":0},0,"--",";","--;-- bit;10116;;0"]
["-- bitte auswählen --","-- bit","10117",{"$f":"Eingabeblatt!G302","v":0},0,"--",";","--;-- bit;10117;;0"]
["-- bitte auswählen --","-- bit","10118",{"$f":"Eingabeblatt!G303","v":0},0,"--",";","--;-- bit;10118;;0"]
["-- bitte auswählen --","-- bit","10119",{"$f":"Eingabeblatt!G304","v":0},0,"--",";","--;-- bit;10119;;0"]
["-- bitte auswählen --","-- bit","10120",{"$f":"Eingabeblatt!G305","v":0},0,"--",";","--;-- bit;10120;;0"]
["-- bitte auswählen --","-- bit","10121",{"$f":"Eingabeblatt!G306","v":0},0,"--",";","--;-- bit;10121;;0"]
["-- bitte auswählen --","-- bit","11110",{"$f":"Eingabeblatt!G310","v":0},0,"--",";","--;-- bit;11110;;0"]
["-- bitte auswählen --","-- bit","11111",{"$f":"Eingabeblatt!G311","v":0},0,"--",";","--;-- bit;11111;;0"]
["-- bitte auswählen --","-- bit","11112",{"$f":"Eingabeblatt!G312","v":0},0,"--",";","--;-- bit;11112;;0"]
["-- bitte auswählen --","-- bit","11113",{"$f":"Eingabeblatt!G313","v":0},0,"--",";","--;-- bit;11113;;0"]
["-- bitte auswählen --","-- bit","11114",{"$f":"Eingabeblatt!G314","v":0},0,{"$f":"RIGHT(A258,2)","v":"--"},";",{"$f":"F259&G259&B258&G259&C259&G259&G259&E259","v":"--;-- bit;11114;;0"}]
[{"$f":"A259","v":"-- bitte auswählen --"},{"$f":"B259","v":"-- bit"},"11115",{"$f":"Eingabeblatt!G315","v":0},{"$f":"ROUND(D260/1,0)","v":0},"--",";","--;-- bit;11115;;0"]
["-- bitte auswählen --","-- bit","11116",{"$f":"Eingabeblatt!G316","v":0},0,"--",";","--;-- bit;11116;;0"]
["-- bitte auswählen --","-- bit","11117",{"$f":"Eingabeblatt!G317","v":0},0,"--",";","--;-- bit;11117;;0"]
["-- bitte auswählen --","-- bit","11118",{"$f":"Eingabeblatt!G318","v":0},0,"--",";","--;-- bit;11118;;0"]
["-- bitte auswählen --","-- bit","11119",{"$f":"Eingabeblatt!G319","v":0},0,"--",";","--;-- bit;11119;;0"]
["-- bitte auswählen --","-- bit","11120",{"$f":"Eingabeblatt!G320","v":0},0,"--",";","--;-- bit;11120;;0"]
["-- bitte auswählen --","-- bit","11121",{"$f":"Eingabeblatt!G321","v":0},0,"--",";","--;-- bit;11121;;0"]
["-- bitte auswählen --","-- bit","12110",{"$f":"Eingabeblatt!G325","v":0},0,"--",";","--;-- bit;12110;;0"]
["-- bitte auswählen --","-- bit","12111",{"$f":"Eingabeblatt!G326","v":0},0,"--",";","--;-- bit;12111;;0"]
["-- bitte auswählen --","-- bit","12112",{"$f":"Eingabeblatt!G327","v":0},0,"--",";","--;-- bit;12112;;0"]
["-- bitte auswählen --","-- bit","12113",{"$f":"Eingabeblatt!G328","v":0},0,"--",";","--;-- bit;12113;;0"]
["-- bitte auswählen --","-- bit","12114",{"$f":"Eingabeblatt!G329","v":0},0,"--",";","--;-- bit;12114;;0"]
["-- bitte auswählen --","-- bit","12115",{"$f":"Eingabeblatt!G330","v":0},0,"--",";","--;-- bit;12115;;0"]
["-- bitte auswählen --","-- bit","12116",{"$f":"Eingabeblatt!G331","v":0},0,"--",";","--;-- bit;12116;;0"]
["-- bitte auswählen --","-- bit","12117",{"$f":"Eingabeblatt!G332","v":0},0,"--",";","--;-- bit;12117;;0"]
["-- bitte auswählen --","-- bit","12118",{"$f":"Eingabeblatt!G333","v":0},0,"--",";","--;-- bit;12118;;0"]
["-- bitte auswählen --","-- bit","12119",{"$f":"Eingabeblatt!G334","v":0},0,"--",";","--;-- bit;12119;;0"]
["-- bitte auswählen --","-- bit","12120",{"$f":"Eingabeblatt!G335","v":0},0,"--",";","--;-- bit;12120;;0"]
["-- bitte auswählen --","-- bit","12121",{"$f":"Eingabeblatt!G336","v":0},0,"--",";","--;-- bit;12121;;0"]
["-- bitte auswählen --","-- bit","13110",{"$f":"Eingabeblatt!G340","v":0},0,"--",";","--;-- bit;13110;;0"]
["-- bitte auswählen --","-- bit","13111",{"$f":"Eingabeblatt!G341","v":0},0,"--",";","--;-- bit;13111;;0"]
["-- bitte auswählen --","-- bit","13112",{"$f":"Eingabeblatt!G342","v":0},0,"--",";","--;-- bit;13112;;0"]
["-- bitte auswählen --","-- bit","13113",{"$f":"Eingabeblatt!G343","v":0},0,"--",";","--;-- bit;13113;;0"]
["-- bitte auswählen --","-- bit","13114",{"$f":"Eingabeblatt!G344","v":0},0,"--",";","--;-- bit;13114;;0"]
["-- bitte auswählen --","-- bit","13115",{"$f":"Eingabeblatt!G345","v":0},0,"--",";","--;-- bit;13115;;0"]
["-- bitte auswählen --","-- bit","13116",{"$f":"Eingabeblatt!G346","v":0},0,"--",";","--;-- bit;13116;;0"]
["-- bitte auswählen --","-- bit","13117",{"$f":"Eingabeblatt!G347","v":0},0,"--",";","--;-- bit;13117;;0"]
["-- bitte auswählen --","-- bit","13118",{"$f":"Eingabeblatt!G348","v":0},0,"--",";","--;-- bit;13118;;0"]
["-- bitte auswählen --","-- bit","13119",{"$f":"Eingabeblatt!G349","v":0},0,"--",";","--;-- bit;13119;;0"]
["-- bitte auswählen --","-- bit","13120",{"$f":"Eingabeblatt!G350","v":0},0,"--",";","--;-- bit;13120;;0"]
["-- bitte auswählen --","-- bit","13121",{"$f":"Eingabeblatt!G351","v":0},0,"--",";","--;-- bit;13121;;0"]
["-- bitte auswählen --","-- bit","13210",{"$f":"Eingabeblatt!G353","v":0},0,"--",";","--;-- bit;13210;;0"]
["-- bitte auswählen --","-- bit","13211",{"$f":"Eingabeblatt!G354","v":0},0,"--",";","--;-- bit;13211;;0"]
["-- bitte auswählen --","-- bit","13212",{"$f":"Eingabeblatt!G355","v":0},0,"--",";","--;-- bit;13212;;0"]
["-- bitte auswählen --","-- bit","13213",{"$f":"Eingabeblatt!G356","v":0},0,"--",";","--;-- bit;13213;;0"]
["-- bitte auswählen --","-- bit","13214",{"$f":"Eingabeblatt!G357","v":0},0,"--",";","--;-- bit;13214;;0"]
["-- bitte auswählen --","-- bit","13215",{"$f":"Eingabeblatt!G358","v":0},0,"--",";","--;-- bit;13215;;0"]
["-- bitte auswählen --","-- bit","13216",{"$f":"Eingabeblatt!G359","v":0},0,"--",";","--;-- bit;13216;;0"]
["-- bitte auswählen --","-- bit","13217",{"$f":"Eingabeblatt!G360","v":0},0,"--",";","--;-- bit;13217;;0"]
["-- bitte auswählen --","-- bit","13218",{"$f":"Eingabeblatt!G361","v":0},0,"--",";","--;-- bit;13218;;0"]
["-- bitte auswählen --","-- bit","13219",{"$f":"Eingabeblatt!G362","v":0},0,"--",";","--;-- bit;13219;;0"]
["-- bitte auswählen --","-- bit","13220",{"$f":"Eingabeblatt!G363","v":0},0,"--",";","--;-- bit;13220;;0"]
["-- bitte auswählen --","-- bit","13221",{"$f":"Eingabeblatt!G364","v":0},0,"--",";","--;-- bit;13221;;0"]
["-- bitte auswählen --","-- bit","13310",{"$f":"Eingabeblatt!G366","v":0},0,"--",";","--;-- bit;13310;;0"]
["-- bitte auswählen --","-- bit","13311",{"$f":"Eingabeblatt!G367","v":0},0,"--",";","--;-- bit;13311;;0"]
["-- bitte auswählen --","-- bit","13312",{"$f":"Eingabeblatt!G368","v":0},0,"--",";","--;-- bit;13312;;0"]
["-- bitte auswählen --","-- bit","13313",{"$f":"Eingabeblatt!G369","v":0},0,"--",";","--;-- bit;13313;;0"]
["-- bitte auswählen --","-- bit","13314",{"$f":"Eingabeblatt!G370","v":0},0,"--",";","--;-- bit;13314;;0"]
["-- bitte auswählen --","-- bit","13315",{"$f":"Eingabeblatt!G371","v":0},0,"--",";","--;-- bit;13315;;0"]
["-- bitte auswählen --","-- bit","13316",{"$f":"Eingabeblatt!G372","v":0},0,"--",";","--;-- bit;13316;;0"]
["-- bitte auswählen --","-- bit","13317",{"$f":"Eingabeblatt!G373","v":0},0,"--",";","--;-- bit;13317;;0"]
["-- bitte auswählen --","-- bit","13318",{"$f":"Eingabeblatt!G374","v":0},0,"--",";","--;-- bit;13318;;0"]
["-- bitte auswählen --","-- bit","13319",{"$f":"Eingabeblatt!G375","v":0},0,"--",";","--;-- bit;13319;;0"]
["-- bitte auswählen --","-- bit","13320",{"$f":"Eingabeblatt!G376","v":0},0,"--",";","--;-- bit;13320;;0"]
["-- bitte auswählen --","-- bit","13321",{"$f":"Eingabeblatt!G377","v":0},0,"--",";","--;-- bit;13321;;0"]
["-- bitte auswählen --","-- bit","13910",{"$f":"Eingabeblatt!G379","v":0},0,"--",";","--;-- bit;13910;;0"]
["-- bitte auswählen --","-- bit","13911",{"$f":"Eingabeblatt!G380","v":0},0,"--",";","--;-- bit;13911;;0"]
["-- bitte auswählen --","-- bit","13912",{"$f":"Eingabeblatt!G381","v":0},0,"--",";","--;-- bit;13912;;0"]
["-- bitte auswählen --","-- bit","13913",{"$f":"Eingabeblatt!G382","v":0},0,"--",";","--;-- bit;13913;;0"]
["-- bitte auswählen --","-- bit","13914",{"$f":"Eingabeblatt!G383","v":0},0,"--",";","--;-- bit;13914;;0"]
["-- bitte auswählen --","-- bit","13915",{"$f":"Eingabeblatt!G384","v":0},0,"--",";","--;-- bit;13915;;0"]
["-- bitte auswählen --","-- bit","13916",{"$f":"Eingabeblatt!G385","v":0},0,"--",";","--;-- bit;13916;;0"]
["-- bitte auswählen --","-- bit","13917",{"$f":"Eingabeblatt!G386","v":0},0,"--",";","--;-- bit;13917;;0"]
["-- bitte auswählen --","-- bit","13918",{"$f":"Eingabeblatt!G387","v":0},0,{"$f":"RIGHT(A322,2)","v":"--"},";",{"$f":"F323&G323&B322&G323&C323&G323&G323&E323","v":"--;-- bit;13918;;0"}]
[{"$f":"A323","v":"-- bitte auswählen --"},{"$f":"B323","v":"-- bit"},"13919",{"$f":"Eingabeblatt!G388","v":0},{"$f":"ROUND(D324/1,0)","v":0},"--",";","--;-- bit;13919;;0"]
["-- bitte auswählen --","-- bit","13920",{"$f":"Eingabeblatt!G389","v":0},0,"--",";","--;-- bit;13920;;0"]
["-- bitte auswählen --","-- bit","13921",{"$f":"Eingabeblatt!G390","v":0},0,"--",";","--;-- bit;13921;;0"]
["-- bitte auswählen --","-- bit","14110",{"$f":"Eingabeblatt!G394","v":0},0,"--",";","--;-- bit;14110;;0"]
["-- bitte auswählen --","-- bit","14111",{"$f":"Eingabeblatt!G395","v":0},0,"--",";","--;-- bit;14111;;0"]
["-- bitte auswählen --","-- bit","14112",{"$f":"Eingabeblatt!G396","v":0},0,"--",";","--;-- bit;14112;;0"]
["-- bitte auswählen --","-- bit","14113",{"$f":"Eingabeblatt!G397","v":0},0,"--",";","--;-- bit;14113;;0"]
["-- bitte auswählen --","-- bit","14114",{"$f":"Eingabeblatt!G398","v":0},0,"--",";","--;-- bit;14114;;0"]
["-- bitte auswählen --","-- bit","14115",{"$f":"Eingabeblatt!G399","v":0},0,"--",";","--;-- bit;14115;;0"]
["-- bitte auswählen --","-- bit","14116",{"$f":"Eingabeblatt!G400","v":0},0,"--",";","--;-- bit;14116;;0"]
["-- bitte auswählen --","-- bit","14117",{"$f":"Eingabeblatt!G401","v":0},0,"--",";","--;-- bit;14117;;0"]
["-- bitte auswählen --","-- bit","14118",{"$f":"Eingabeblatt!G402","v":0},0,"--",";","--;-- bit;14118;;0"]
["-- bitte auswählen --","-- bit","14119",{"$f":"Eingabeblatt!G403","v":0},0,"--",";","--;-- bit;14119;;0"]
["-- bitte auswählen --","-- bit","14120",{"$f":"Eingabeblatt!G404","v":0},0,"--",";","--;-- bit;14120;;0"]
["-- bitte auswählen --","-- bit","14121",{"$f":"Eingabeblatt!G405","v":0},0,"--",";","--;-- bit;14121;;0"]
["-- bitte auswählen --","-- bit",14610,{"$f":"Eingabeblatt!G407","v":0},0,"--",";","--;-- bit;14610;;0"]
["-- bitte auswählen --","-- bit","15110",{"$f":"Eingabeblatt!G411","v":0},0,"--",";","--;-- bit;15110;;0"]
["-- bitte auswählen --","-- bit","15111",{"$f":"Eingabeblatt!G412","v":0},0,"--",";","--;-- bit;15111;;0"]
["-- bitte auswählen --","-- bit","15210",{"$f":"Eingabeblatt!G414","v":0},0,"--",";","--;-- bit;15210;;0"]
["-- bitte auswählen --","-- bit","15211",{"$f":"Eingabeblatt!G415","v":0},0,"--",";","--;-- bit;15211;;0"]
["-- bitte auswählen --","-- bit","16710",{"$f":"Eingabeblatt!G419","v":0},0,"--",";","--;-- bit;16710;;0"]
["-- bitte auswählen --","-- bit","16711",{"$f":"Eingabeblatt!G420","v":0},0,"--",";","--;-- bit;16711;;0"]
["-- bitte auswählen --","-- bit","16712",{"$f":"Eingabeblatt!G421","v":0},0,"--",";","--;-- bit;16712;;0"]
["-- bitte auswählen --","-- bit","16713",{"$f":"Eingabeblatt!G422","v":0},0,"--",";","--;-- bit;16713;;0"]
["-- bitte auswählen --","-- bit","16714",{"$f":"Eingabeblatt!G423","v":0},0,"--",";","--;-- bit;16714;;0"]
["-- bitte auswählen --","-- bit","17710",{"$f":"Eingabeblatt!G427","v":0},0,"--",";","--;-- bit;17710;;0"]
["-- bitte auswählen --","-- bit","17712",{"$f":"Eingabeblatt!G428","v":0},0,"--",";","--;-- bit;17712;;0"]
["-- bitte auswählen --","-- bit","17714",{"$f":"Eingabeblatt!G429","v":0},0,"--",";","--;-- bit;17714;;0"]
["-- bitte auswählen --","-- bit","17716",{"$f":"Eingabeblatt!G430","v":0},0,"--",";","--;-- bit;17716;;0"]
["-- bitte auswählen --","-- bit","17718",{"$f":"Eingabeblatt!G431","v":0},0,"--",";","--;-- bit;17718;;0"]
["-- bitte auswählen --","-- bit","17910",{"$f":"Eingabeblatt!G433","v":0},0,"--",";","--;-- bit;17910;;0"]
["-- bitte auswählen --","-- bit","17911",{"$f":"Eingabeblatt!G434","v":0},0,"--",";","--;-- bit;17911;;0"]
["-- bitte auswählen --","-- bit","18910",{"$f":"Eingabeblatt!G438","v":0},0,"--",";","--;-- bit;18910;;0"]
["-- bitte auswählen --","-- bit","19110",{"$f":"Eingabeblatt!G442","v":0},0,"--",";","--;-- bit;19110;;0"]
["-- bitte auswählen --","-- bit","19910",{"$f":"Eingabeblatt!G444","v":0},0,"--",";","--;-- bit;19910;;0"]
["-- bitte auswählen --","-- bit","19916",{"$f":"Eingabeblatt!G445","v":0},0,"--",";","--;-- bit;19916;;0"]
["-- bitte auswählen --","-- bit","19917",{"$f":"Eingabeblatt!G446","v":0},0,"--",";","--;-- bit;19917;;0"]
["-- bitte auswählen --","-- bit","19912",{"$f":"Eingabeblatt!G447","v":0},0,"--",";","--;-- bit;19912;;0"]
["-- bitte auswählen --","-- bit","19913",{"$f":"Eingabeblatt!G448","v":0},0,"--",";","--;-- bit;19913;;0"]
[{"$f":"A356","v":"-- bitte auswählen --"},{"$f":"B356","v":"-- bit"},"19915",{"$f":"Eingabeblatt!G449","v":0},0,"--",";","--;-- bit;19915;;0"]
[{"$f":"A363","v":"-- bitte auswählen --"},{"$f":"B363","v":"-- bit"},"19990",{"$f":"Eingabeblatt!G444","v":0},0,"--",";","--;-- bit;19990;;0"]
["-- bitte auswählen --","-- bit","20110",{"$f":"Eingabeblatt!G455","v":0},0,"--",";","--;-- bit;20110;;0"]
["-- bitte auswählen --","-- bit","20116",{"$f":"Eingabeblatt!G456","v":0},{"$f":"ROUND(D366/1,0)","v":0},"--",";","--;-- bit;20116;;0"]
["-- bitte auswählen --","-- bit","20117",{"$f":"Eingabeblatt!G457","v":0},0,"--",";","--;-- bit;20117;;0"]
["-- bitte auswählen --","-- bit","20112",{"$f":"Eingabeblatt!G458","v":0},0,"--",";","--;-- bit;20112;;0"]
["-- bitte auswählen --","-- bit","20113",{"$f":"Eingabeblatt!G459","v":0},0,"--",";","--;-- bit;20113;;0"]
["-- bitte auswählen --","-- bit","20115",{"$f":"Eingabeblatt!G460","v":0},0,"--",";","--;-- bit;20115;;0"]
["-- bitte auswählen --","-- bit","20310",{"$f":"Eingabeblatt!G462","v":0},0,"--",";","--;-- bit;20310;;0"]
["-- bitte auswählen --","-- bit","20316",{"$f":"Eingabeblatt!G463","v":0},0,"--",";","--;-- bit;20316;;0"]
["-- bitte auswählen --","-- bit","20317",{"$f":"Eingabeblatt!G464","v":0},0,"--",";","--;-- bit;20317;;0"]
["-- bitte auswählen --","-- bit","20312",{"$f":"Eingabeblatt!G465","v":0},0,"--",";","--;-- bit;20312;;0"]
["-- bitte auswählen --","-- bit","20313",{"$f":"Eingabeblatt!G466","v":0},0,"--",";","--;-- bit;20313;;0"]
["-- bitte auswählen --","-- bit","20315",{"$f":"Eingabeblatt!G467","v":0},0,"--",";","--;-- bit;20315;;0"]
["-- bitte auswählen --","-- bit","20410",{"$f":"Eingabeblatt!G469","v":0},0,"--",";","--;-- bit;20410;;0"]
["-- bitte auswählen --","-- bit","20416",{"$f":"Eingabeblatt!G470","v":0},0,"--",";","--;-- bit;20416;;0"]
["-- bitte auswählen --","-- bit","20417",{"$f":"Eingabeblatt!G471","v":0},0,"--",";","--;-- bit;20417;;0"]
["-- bitte auswählen --","-- bit","20412",{"$f":"Eingabeblatt!G472","v":0},0,"--",";","--;-- bit;20412;;0"]
["-- bitte auswählen --","-- bit","20413",{"$f":"Eingabeblatt!G473","v":0},0,"--",";","--;-- bit;20413;;0"]
["-- bitte auswählen --","-- bit","20415",{"$f":"Eingabeblatt!G474","v":0},0,"--",";","--;-- bit;20415;;0"]
["-- bitte auswählen --","-- bit","20710",{"$f":"Eingabeblatt!G476","v":0},0,"--",";","--;-- bit;20710;;0"]
["-- bitte auswählen --","-- bit","20716",{"$f":"Eingabeblatt!G477","v":0},0,"--",";","--;-- bit;20716;;0"]
["-- bitte auswählen --","-- bit","20717",{"$f":"Eingabeblatt!G478","v":0},0,"--",";","--;-- bit;20717;;0"]
["-- bitte auswählen --","-- bit","20712",{"$f":"Eingabeblatt!G479","v":0},0,"--",";","--;-- bit;20712;;0"]
["-- bitte auswählen --","-- bit","20713",{"$f":"Eingabeblatt!G480","v":0},0,{"$f":"RIGHT(A386,2)","v":"--"},";",{"$f":"F387&G387&B386&G387&C387&G387&G387&E387","v":"--;-- bit;20713;;0"}]
["-- bitte auswählen --","-- bit","20715",{"$f":"Eingabeblatt!G481","v":0},0,"--",";","--;-- bit;20715;;0"]
["-- bitte auswählen --","-- bit","20810",{"$f":"Eingabeblatt!G483","v":0},0,"--",";","--;-- bit;20810;;0"]
["-- bitte auswählen --","-- bit","20816",{"$f":"Eingabeblatt!G484","v":0},0,"--",";","--;-- bit;20816;;0"]
["-- bitte auswählen --","-- bit","20817",{"$f":"Eingabeblatt!G485","v":0},0,"--",";","--;-- bit;20817;;0"]
["-- bitte auswählen --","-- bit","20812",{"$f":"Eingabeblatt!G486","v":0},0,"--",";","--;-- bit;20812;;0"]
["-- bitte auswählen --","-- bit","20813",{"$f":"Eingabeblatt!G487","v":0},0,"--",";","--;-- bit;20813;;0"]
[{"$f":"A388","v":"-- bitte auswählen --"},{"$f":"B388","v":"-- bit"},"20815",{"$f":"Eingabeblatt!G488","v":0},0,"--",";","--;-- bit;20815;;0"]
["-- bitte auswählen --","-- bit","23110",{"$f":"Eingabeblatt!G492","v":0},0,"--",";","--;-- bit;23110;;0"]
["-- bitte auswählen --","-- bit","23210",{"$f":"Eingabeblatt!G494","v":0},0,"--",";","--;-- bit;23210;;0"]
["-- bitte auswählen --","-- bit","23310",{"$f":"Eingabeblatt!G496","v":0},0,"--",";","--;-- bit;23310;;0"]
["-- bitte auswählen --","-- bit","23910",{"$f":"Eingabeblatt!G498","v":0},0,"--",";","--;-- bit;23910;;0"]
["-- bitte auswählen --","-- bit","25110",{"$f":"Eingabeblatt!G502","v":0},0,"--",";","--;-- bit;25110;;0"]
["-- bitte auswählen --","-- bit","26110",{"$f":"Eingabeblatt!G506","v":0},0,"--",";","--;-- bit;26110;;0"]
["-- bitte auswählen --","-- bit","27110",{"$f":"Eingabeblatt!G510","v":0},0,"--",";","--;-- bit;27110;;0"]
["-- bitte auswählen --","-- bit","28110",{"$f":"Eingabeblatt!G514","v":0},0,"--",";","--;-- bit;28110;;0"]
["-- bitte auswählen --","-- bit","30210",{"$f":"Eingabeblatt!G518","v":0},0,"--",";","--;-- bit;30210;;0"]
["-- bitte auswählen --","-- bit","30211",{"$f":"Eingabeblatt!G519","v":0},0,"--",";","--;-- bit;30211;;0"]
["-- bitte auswählen --","-- bit","30212",{"$f":"Eingabeblatt!G520","v":0},0,"--",";","--;-- bit;30212;;0"]
["-- bitte auswählen --","-- bit","30213",{"$f":"Eingabeblatt!G521","v":0},0,"--",";","--;-- bit;30213;;0"]
["-- bitte auswählen --","-- bit","30214",{"$f":"Eingabeblatt!G522","v":0},0,"--",";","--;-- bit;30214;;0"]
["-- bitte auswählen --","-- bit","30310",{"$f":"Eingabeblatt!G524","v":0},0,"--",";","--;-- bit;30310;;0"]
["-- bitte auswählen --","-- bit","30311",{"$f":"Eingabeblatt!G525","v":0},0,"--",";","--;-- bit;30311;;0"]
["-- bitte auswählen --","-- bit","30312",{"$f":"Eingabeblatt!G526","v":0},0,"--",";","--;-- bit;30312;;0"]
["-- bitte auswählen --","-- bit","30313",{"$f":"Eingabeblatt!G527","v":0},0,"--",";","--;-- bit;30313;;0"]
["-- bitte auswählen --","-- bit","30314",{"$f":"Eingabeblatt!G528","v":0},0,"--",";","--;-- bit;30314;;0"]
["-- bitte auswählen --","-- bit","32110",{"$f":"Eingabeblatt!G532","v":0},0,"--",";","--;-- bit;32110;;0"]
["-- bitte auswählen --","-- bit","32111",{"$f":"Eingabeblatt!G533","v":0},0,"--",";","--;-- bit;32111;;0"]
["-- bitte auswählen --","-- bit","32112",{"$f":"Eingabeblatt!G534","v":0},0,"--",";","--;-- bit;32112;;0"]
["-- bitte auswählen --","-- bit","32113",{"$f":"Eingabeblatt!G535","v":0},0,"--",";","--;-- bit;32113;;0"]
["-- bitte auswählen --","-- bit","32114",{"$f":"Eingabeblatt!G536","v":0},0,"--",";","--;-- bit;32114;;0"]
["-- bitte auswählen --","-- bit","32210",{"$f":"Eingabeblatt!G538","v":0},0,"--",";","--;-- bit;32210;;0"]
[{"$f":"A418","v":"-- bitte auswählen --"},{"$f":"B418","v":"-- bit"},"32211",{"$f":"Eingabeblatt!G539","v":0},{"$f":"ROUND(D419/1,0)","v":0},"--",";","--;-- bit;32211;;0"]
["-- bitte auswählen --","-- bit","32212",{"$f":"Eingabeblatt!G540","v":0},0,"--",";","--;-- bit;32212;;0"]
["-- bitte auswählen --","-- bit","32213",{"$f":"Eingabeblatt!G541","v":0},0,"--",";","--;-- bit;32213;;0"]
["-- bitte auswählen --","-- bit","32214",{"$f":"Eingabeblatt!G542","v":0},0,"--",";","--;-- bit;32214;;0"]
["-- bitte auswählen --","-- bit","32310",{"$f":"Eingabeblatt!G544","v":0},0,"--",";","--;-- bit;32310;;0"]
["-- bitte auswählen --","-- bit","32311",{"$f":"Eingabeblatt!G545","v":0},0,"--",";","--;-- bit;32311;;0"]
["-- bitte auswählen --","-- bit","32312",{"$f":"Eingabeblatt!G546","v":0},0,"--",";","--;-- bit;32312;;0"]
["-- bitte auswählen --","-- bit","32313",{"$f":"Eingabeblatt!G547","v":0},0,"--",";","--;-- bit;32313;;0"]
["-- bitte auswählen --","-- bit","32314",{"$f":"Eingabeblatt!G548","v":0},0,"--",";","--;-- bit;32314;;0"]
["-- bitte auswählen --","-- bit","32610",{"$f":"Eingabeblatt!G550","v":0},0,"--",";","--;-- bit;32610;;0"]
["-- bitte auswählen --","-- bit","32611",{"$f":"Eingabeblatt!G551","v":0},0,"--",";","--;-- bit;32611;;0"]
["-- bitte auswählen --","-- bit","32612",{"$f":"Eingabeblatt!G552","v":0},0,"--",";","--;-- bit;32612;;0"]
["-- bitte auswählen --","-- bit","32613",{"$f":"Eingabeblatt!G553","v":0},0,"--",";","--;-- bit;32613;;0"]
["-- bitte auswählen --","-- bit","32614",{"$f":"Eingabeblatt!G554","v":0},0,"--",";","--;-- bit;32614;;0"]
["-- bitte auswählen --","-- bit","32710",{"$f":"Eingabeblatt!G556","v":0},0,"--",";","--;-- bit;32710;;0"]
["-- bitte auswählen --","-- bit","32711",{"$f":"Eingabeblatt!G557","v":0},0,"--",";","--;-- bit;32711;;0"]
["-- bitte auswählen --","-- bit","32712",{"$f":"Eingabeblatt!G558","v":0},0,"--",";","--;-- bit;32712;;0"]
["-- bitte auswählen --","-- bit","32713",{"$f":"Eingabeblatt!G559","v":0},0,"--",";","--;-- bit;32713;;0"]
["-- bitte auswählen --","-- bit","32714",{"$f":"Eingabeblatt!G560","v":0},0,"--",";","--;-- bit;32714;;0"]
["-- bitte auswählen --","-- bit","33310",{"$f":"Eingabeblatt!G564","v":0},0,"--",";","--;-- bit;33310;;0"]
["-- bitte auswählen --","-- bit","33311",{"$f":"Eingabeblatt!G565","v":0},0,"--",";","--;-- bit;33311;;0"]
["-- bitte auswählen --","-- bit","33312",{"$f":"Eingabeblatt!G566","v":0},0,"--",";","--;-- bit;33312;;0"]
["-- bitte auswählen --","-- bit","33313",{"$f":"Eingabeblatt!G567","v":0},0,"--",";","--;-- bit;33313;;0"]
["-- bitte auswählen --","-- bit","33314",{"$f":"Eingabeblatt!G568","v":0},0,"--",";","--;-- bit;33314;;0"]
["-- bitte auswählen --","-- bit","34110",{"$f":"Eingabeblatt!G572","v":0},0,"--",";","--;-- bit;34110;;0"]
["-- bitte auswählen --","-- bit","34111",{"$f":"Eingabeblatt!G573","v":0},0,"--",";","--;-- bit;34111;;0"]
["-- bitte auswählen --","-- bit","34112",{"$f":"Eingabeblatt!G574","v":0},0,"--",";","--;-- bit;34112;;0"]
["-- bitte auswählen --","-- bit","34113",{"$f":"Eingabeblatt!G575","v":0},0,"--",";","--;-- bit;34113;;0"]
["-- bitte auswählen --","-- bit","34114",{"$f":"Eingabeblatt!G576","v":0},0,"--",";","--;-- bit;34114;;0"]
["-- bitte auswählen --","-- bit","35110",{"$f":"Eingabeblatt!G580","v":0},0,"--",";","--;-- bit;35110;;0"]
["-- bitte auswählen --","-- bit","35111",{"$f":"Eingabeblatt!G581","v":0},0,"--",";","--;-- bit;35111;;0"]
["-- bitte auswählen --","-- bit","35112",{"$f":"Eingabeblatt!G582","v":0},0,"--",";","--;-- bit;35112;;0"]
["-- bitte auswählen --","-- bit","35113",{"$f":"Eingabeblatt!G583","v":0},0,{"$f":"RIGHT(A450,2)","v":"--"},";",{"$f":"F451&G451&B450&G451&C451&G451&G451&E451","v":"--;-- bit;35113;;0"}]
["-- bitte auswählen --","-- bit","35114",{"$f":"Eingabeblatt!G584","v":0},0,"--",";","--;-- bit;35114;;0"]
["-- bitte auswählen --","-- bit","36110",{"$f":"Eingabeblatt!G588","v":0},0,"--",";","--;-- bit;36110;;0"]
["-- bitte auswählen --","-- bit","36111",{"$f":"Eingabeblatt!G589","v":0},0,"--",";","--;-- bit;36111;;0"]
["-- bitte auswählen --","-- bit","36112",{"$f":"Eingabeblatt!G590","v":0},0,"--",";","--;-- bit;36112;;0"]
["-- bitte auswählen --","-- bit","36113",{"$f":"Eingabeblatt!G591","v":0},0,"--",";","--;-- bit;36113;;0"]
["-- bitte auswählen --","-- bit","36114",{"$f":"Eingabeblatt!G592","v":0},0,"--",";","--;-- bit;36114;;0"]
["-- bitte auswählen --","-- bit","37110",{"$f":"Eingabeblatt!G596","v":0},0,"--",";","--;-- bit;37110;;0"]
["-- bitte auswählen --","-- bit","37111",{"$f":"Eingabeblatt!G597","v":0},0,"--",";","--;-- bit;37111;;0"]
["-- bitte auswählen --","-- bit","37112",{"$f":"Eingabeblatt!G598","v":0},0,"--",";","--;-- bit;37112;;0"]
["-- bitte auswählen --","-- bit","37113",{"$f":"Eingabeblatt!G599","v":0},0,"--",";","--;-- bit;37113;;0"]
["-- bitte auswählen --","-- bit","37114",{"$f":"Eingabeblatt!G600","v":0},0,"--",";","--;-- bit;37114;;0"]
["-- bitte auswählen --","-- bit","38110",{"$f":"Eingabeblatt!G604","v":0},0,"--",";","--;-- bit;38110;;0"]
["-- bitte auswählen --","-- bit","38111",{"$f":"Eingabeblatt!G605","v":0},0,"--",";","--;-- bit;38111;;0"]
["-- bitte auswählen --","-- bit","39110",{"$f":"Eingabeblatt!G609","v":0},0,"--",";","--;-- bit;39110;;0"]

{"sheet":"Tabelle2","index":8,"n_rows":0,"n_cols":0,"rows_kept":0,"cut":false,"hidden":true,"merged":[]}